Workbook

Sheet LA 4
AS1: Weight total: | AT1: =+H7 -> 48.65 | AU1: kg | AV1: Total weight includes: FR 4 ( 9 kg), Main LS Cables (30 kg)
AS3: 2 motors, kg | AT3: front motor | BF3: rear motor
AT4: =+((D7-D8)/D7)*H7 -> 40.01259792 | BF4: =+(D8/D7)*H7 -> 8.637402083
BD5: =IF(BE21=12,11) -> FALSE | BF5: =IF(BE21=12,13) -> FALSE
BB6: =IF(BD21=11,9) -> FALSE | BF6: =IF(BD21=11,13) -> FALSE
B7: L(2motors)= | D7: 480 | F7: kg | G7: G | H7: =+(B32*9.65)+9+30 -> 48.65 | J7: =AND(D24>=5,E24>=5) -> TRUE | K7: =IF(D24>=5,"O K ","OVERLOAD") -> O K | L7: =IF(E24>=5,"O K ","OVERLOAD") -> O K | AZ7: =IF(BC21=10,7) -> FALSE | BF7: =IF(BC21=10,13) -> FALSE
B8: a(2motors)=a-15 | D8: =+H11-15 -> 85.22 | F8: mm | G8: L | H8: 153 | AX8: =IF(BB21=9,5) -> FALSE | BF8: =IF(BB21=9,13) -> FALSE
J9: destroying force, kg | K9: 1700 | L9: 1700 | AV9: =IF(BA21=8,3) -> FALSE | BF9: =IF(BA21=8,13) -> FALSE
F10: =+B32 -> 1 | H10: =IF(F10<=40,F10) -> 1 | K10: Fa=((L-a)/L)*G | L10: Fb=(a/L)*G | AT10: =IF(AZ21=7,1) -> FALSE | BF10: =IF(AZ21=7,13) -> FALSE
F11: mm | G11: a | H11: =SUM(V35:V74)/H10 -> 100.22 | J11: kg | K11: =+((H8-H11)/H8)*H7 -> 16.78266013 | L11: =+(H11/H8)*H7 -> 31.86733987 | AT11: =IF(AZ21=61,1) -> FALSE | BF11: =IF(AZ21=61,10) -> FALSE
AT12: =IF(AY21=6,1) -> FALSE | BD12: =IF(AY21=6,8) -> FALSE
AT13: =IF(AX21=5,1) -> FALSE | BB13: =IF(AX21=5,9) -> FALSE
AT14: =IF(AW21=4,1) -> FALSE | AZ14: =IF(AW21=4,7) -> FALSE
AT15: =IF(AV21=3,1) -> 1 | AX15: =IF(AV21=3,5) -> 5
AT16: =IF(AU21=2,1) -> FALSE | AV16: =IF(AU21=2,3) -> FALSE
AS19: 2 points-one motor | AT19: =SUM(AT5:AT17) -> 1 | AU19: 0 | AV19: 0 | AW19: 0 | AX19: 5 | AY19: 0 | AZ19: =SUM(AZ5:AZ17) -> 0 | BA19: 0 | BB19: 0 | BC19: 0 | BD19: =SUM(BD5:BD17) -> 0 | BE19: 0 | BF19: 0
D21: =+K9/K11 -> 101.2950263 | E21: =+L9/L11 -> 53.34615336 | AT21: =+AK89 -> FALSE | AU21: =+AK90 -> FALSE | AV21: =+AK91 -> 3 | AW21: =+AK92 -> FALSE | AX21: =+AK93 -> FALSE | AY21: =+AK94 -> FALSE | AZ21: =+AK95 -> FALSE | BA21: =+AK96 -> FALSE | BB21: =+AK97 -> FALSE | BC21: =+AK98 -> FALSE | BD21: =+AK99 -> FALSE | BE21: =+AK100 -> FALSE | BF21: =+AK101 -> FALSE
AS22: 1 point-one motor | AT22: =+AT21 -> FALSE | AU22: =+AU21 -> FALSE | AV22: 3 | AW22: FALSE | AX22: FALSE | AY22: FALSE | AZ22: FALSE | BA22: FALSE | BB22: FALSE | BC22: FALSE | BD22: FALSE | BE22: FALSE | BF22: FALSE
D23: front | E23: rear | AT23: 1 | AU23: 2 | AV23: 3 | AW23: 4 | AX23: 5 | AY23: 6 | AZ23: 7 | BA23: 8 | BB23: 9 | BC23: 10 | BD23: 11 | BE23: 12 | BF23: 13
B24: k - safety factor of FR 4 | D24: =ABS(D21) -> 101.2950263 | E24: =ABS(E21) -> 53.34615336
AQ25: center om mass | BJ25: center om mass
B26: =IF(J7=TRUE,"O K","OVERLOAD") -> O K | AR26: =-+AH89 -> 85.22 | BK26: =+-AH101 -> -394.78 | BL26: mm
B27: enter the angle of frame FR 4
D28: =IF(AR26>0," ","change the angle of frame or of cabinets") -> 
B29: 0 | D29: =IF(BK26<0," ","change the angle of frame or of cabinets") -> 
B30: enter the number of cabinets from 1 up to 40
B32: 1 | D32: LA 4
H33: d | I33: k | J33: b | K33: b/2 | L33: sin b/2 | M33: c=sin(b/2)*d | N33: 2c | O33: e=a/2 | P33: sin(e) | Q33: f=sin(e)*2c | R33: g center of mass -x | S33: h=g+f | T33: center of mass X | AL33: синьо | AM33: синьо | AN33: k - safety factor
D34: enter the value of a-angle | X34: z- център на тежест на боксовете след него спрямо първата колона | Y34: a - общ ъгъл | Z34: t= 54.51-a | AA34: sin t | AB34: m= sin t *n(const) | AC34: r= 52.1+a | AD34: sin r | AE34: p= sin r *q(const) | AF34: g - тегло на боксожете под тази | AG34: L=m+n | AH34: J=x-p | AI34: A=z-J | AJ34: Fa=((L-A)/L)*G | AK34: Fb=(A/L)*G | AL34: front | AM34: rear | AN34: front | AO34: rear
B35: 1 | C35: =+($B$29*-1)+D35 -> 0 | D35: 0 | E35: from 0 to 10 | G35: =+D35 -> 0 | H35: 127 | I35: 75.78636092 | J35: =+I35-C35 -> 75.78636092 | K35: =+J35/2 -> 37.89318046 | L35: =SIN(K35*3.14159265358979/180) -> 0.6141912763 | M35: =+L35*H35 -> 78.00229208 | N35: =+M35*2 -> 156.0045842 | O35: =+C35/2 -> 0 | P35: =SIN(O35*3.14159265358979/180) -> 0 | Q35: =+P35*N35 -> 0 | R35: 100.22 | S35: =+R35+Q35 -> 100.22 | T35: =+S35 -> 100.22 | V35: =IF(B35<($B$32+1),T35,0) -> 100.22 | X35: =SUM(V35:V74)/($B$32) -> 100.22 | Y35: =+C35 -> 0 | Z35: =54.51975024-Y35 -> 54.51975024 | AA35: =SIN(Z35*3.14159265358979/180) -> 0.8143156422 | AB35: =+AA35*64.8125 -> 52.77783256 | AC35: =52.10681954+Y35 -> 52.10681954 | AD35: =SIN(AC35*3.14159265358979/180) -> 0.7891571936 | AE35: =+AD35*126.9963 -> 100.2200437 | AF35: =9.65*B32 -> 9.65 | AG35: =+AE35+AB35 -> 152.9978763 | AH35: =+V35-AE35 -> -4.370235216e-05 | AI35: =+X35-AH35 -> 100.2200437 | AJ35: =+((AG35-AI35)/AG35)*AF35 -> 3.328844142 | AK35: =+(AI35/AG35)*AF35 -> 6.321155858 | AL35: =2*$K$9/AJ35 -> 1021.375545 | AM35: =2*$L$9/AK35 -> 537.876312 | AN35: =ABS(AL35) -> 1021.375545 | AO35: =ABS(AM35) -> 537.876312
B36: 2 | D36: 0 | E36: from 0 to 20 | G36: =+D36+AP36 -> 0 | H36: 127 | I36: 75.78636092 | J36: =+I36-D36 -> 75.78636092 | K36: 37.89318046 | L36: =SIN(K36*3.14159265358979/180) -> 0.6141912763 | M36: 78.00229208 | N36: 156.0045842 | O36: =+C35+(D36/2) -> 0 | P36: 0 | Q36: 0 | R36: =+T35 -> 100.22 | S36: =+R36+Q36 -> 100.22 | T36: 100.22 | V36: 0 | X36: =SUM(V36:V74)/($B$32-B35) ->  | Y36: =SUM(D36)+$C$35 -> 0 | Z36: =54.51975024-Y36 -> 54.51975024 | AA36: 0.8143156422 | AB36: =+AA36*64.8125 -> 52.77783256 | AC36: =52.10681954+Y36 -> 52.10681954 | AD36: =SIN(AC36*3.14159265358979/180) -> 0.7891571936 | AE36: =+AD36*126.9963 -> 100.2200437 | AF36: =9.65*($B$32-B35) -> 0 | AG36: =+AE36+AB36 -> 152.9978763 | AH36: =+V36-AE36 -> -100.2200437 | AI36: =+X36-AH36 ->  | AJ36: =+((AG36-AI36)/AG36)*AF36 ->  | AK36: =+(AI36/AG36)*AF36 ->  | AN36: =ABS(AL36) ->  | AO36: =ABS(AM36) -> 
B37: 3 | D37: 0 | E37: from 0 to 20 | G37: 0 | H37: 127 | I37: 75.78636092 | J37: 75.78636092 | K37: 37.89318046 | L37: 0.6141912763 | M37: 78.00229208 | N37: 156.0045842 | O37: =+C35+D36+(D37/2) -> 0 | P37: 0 | Q37: 0 | R37: 100.22 | S37: =+S36+Q37 -> 100.22 | T37: 100.22 | V37: 0 | X37: =SUM(V37:V74)/($B$32-B36) -> 0 | Y37: =SUM(D36:D37)+$C$35 -> 0 | Z37: 54.51975024 | AA37: 0.8143156422 | AB37: 52.77783256 | AC37: 52.10681954 | AD37: 0.7891571936 | AE37: 100.2200437 | AF37: =9.65*($B$32-B36) -> -9.65 | AG37: 152.9978763 | AH37: =+V37-AE37 -> -100.2200437 | AI37: =+X37-AH37 -> 100.2200437 | AJ37: -3.328844142 | AK37: -6.321155858 | AL37: -1021.375545 | AM37: -537.876312 | AN37: 1021.375545 | AO37: 537.876312
B38: 4 | D38: 0 | E38: from 0 to 20 | G38: 0 | H38: 127 | I38: 75.78636092 | J38: 75.78636092 | K38: 37.89318046 | L38: 0.6141912763 | M38: 78.00229208 | N38: 156.0045842 | O38: =+C35+D36+D37+(D38/2) -> 0 | P38: 0 | Q38: 0 | R38: 100.22 | S38: 100.22 | T38: 100.22 | V38: 0 | X38: =SUM(V38:V74)/($B$32-B37) -> 0 | Y38: =SUM(D36:D38)+$C$35 -> 0 | Z38: 54.51975024 | AA38: 0.8143156422 | AB38: 52.77783256 | AC38: 52.10681954 | AD38: 0.7891571936 | AE38: 100.2200437 | AF38: -19.3 | AG38: 152.9978763 | AH38: =+V38-AE38 -> -100.2200437 | AI38: =+X38-AH38 -> 100.2200437 | AJ38: -6.657688285 | AK38: -12.64231172 | AL38: -510.6877725 | AM38: -268.938156 | AN38: 510.6877725 | AO38: 268.938156
B39: 5 | D39: 0 | E39: from 0 to 20 | G39: 0 | H39: 127 | I39: 75.78636092 | J39: 75.78636092 | K39: 37.89318046 | L39: 0.6141912763 | M39: 78.00229208 | N39: 156.0045842 | O39: =+C35+D36+D37+D38+(D39/2) -> 0 | P39: 0 | Q39: 0 | R39: 100.22 | S39: 100.22 | T39: 100.22 | V39: 0 | X39: =SUM(V39:V74)/($B$32-B38) -> 0 | Y39: =SUM(D36:D39)+$C$35 -> 0 | Z39: 54.51975024 | AA39: 0.8143156422 | AB39: 52.77783256 | AC39: 52.10681954 | AD39: 0.7891571936 | AE39: 100.2200437 | AF39: -28.95 | AG39: 152.9978763 | AH39: =+V39-AE39 -> -100.2200437 | AI39: 100.2200437 | AJ39: -9.986532427 | AK39: -18.96346757 | AL39: -340.458515 | AM39: -179.292104 | AN39: 340.458515 | AO39: 179.292104
B40: 6 | D40: 0 | E40: from 0 to 20 | G40: 0 | H40: 127 | I40: 75.78636092 | J40: 75.78636092 | K40: 37.89318046 | L40: 0.6141912763 | M40: 78.00229208 | N40: 156.0045842 | O40: =+C35+D36+D37+D38+D39+(D40/2) -> 0 | P40: 0 | Q40: 0 | R40: 100.22 | S40: 100.22 | T40: 100.22 | V40: 0 | X40: =SUM(V40:V74)/($B$32-B39) -> 0 | Y40: =SUM(D36:D40)+$C$35 -> 0 | Z40: 54.51975024 | AA40: 0.8143156422 | AB40: 52.77783256 | AC40: 52.10681954 | AD40: 0.7891571936 | AE40: 100.2200437 | AF40: -38.6 | AG40: 152.9978763 | AH40: -100.2200437 | AI40: 100.2200437 | AJ40: -13.31537657 | AK40: -25.28462343 | AL40: -255.3438862 | AM40: -134.469078 | AN40: 255.3438862 | AO40: 134.469078
B41: 7 | D41: 0 | E41: from 0 to 20 | G41: 0 | H41: 127 | I41: 75.78636092 | J41: 75.78636092 | K41: 37.89318046 | L41: 0.6141912763 | M41: 78.00229208 | N41: 156.0045842 | O41: =+C35+D36+D37+D38+D39+D40+(D41/2) -> 0 | P41: 0 | Q41: 0 | R41: 100.22 | S41: 100.22 | T41: 100.22 | V41: 0 | X41: =SUM(V41:V74)/($B$32-B40) -> 0 | Y41: =SUM(D36:D41)+$C$35 -> 0 | Z41: 54.51975024 | AA41: 0.8143156422 | AB41: 52.77783256 | AC41: 52.10681954 | AD41: 0.7891571936 | AE41: 100.2200437 | AF41: -48.25 | AG41: 152.9978763 | AH41: -100.2200437 | AI41: 100.2200437 | AJ41: -16.64422071 | AK41: -31.60577929 | AL41: -204.275109 | AM41: -107.5752624 | AN41: 204.275109 | AO41: 107.5752624
B42: 8 | D42: 0 | E42: from 0 to 20 | G42: 0 | H42: 127 | I42: 75.78636092 | J42: 75.78636092 | K42: 37.89318046 | L42: 0.6141912763 | M42: 78.00229208 | N42: 156.0045842 | O42: =+C35+D36+D37+D38+D39+D40+D41+(D42/2) -> 0 | P42: 0 | Q42: 0 | R42: 100.22 | S42: 100.22 | T42: 100.22 | V42: 0 | X42: =SUM(V42:V74)/($B$32-B41) -> 0 | Y42: =SUM(D36:D42)+$C$35 -> 0 | Z42: 54.51975024 | AA42: 0.8143156422 | AB42: 52.77783256 | AC42: 52.10681954 | AD42: 0.7891571936 | AE42: 100.2200437 | AF42: -57.9 | AG42: 152.9978763 | AH42: -100.2200437 | AI42: 100.2200437 | AJ42: -19.97306485 | AK42: -37.92693515 | AL42: -170.2292575 | AM42: -89.64605199 | AN42: 170.2292575 | AO42: 89.64605199
B43: 9 | D43: 0 | E43: from 0 to 20 | G43: 0 | H43: 127 | I43: 75.78636092 | J43: 75.78636092 | K43: 37.89318046 | L43: 0.6141912763 | M43: 78.00229208 | N43: 156.0045842 | O43: =+C35+D36+D37+D38+D39+D40+D41+D42+(D43/2) -> 0 | P43: 0 | Q43: 0 | R43: 100.22 | S43: 100.22 | T43: 100.22 | V43: 0 | X43: =SUM(V43:V74)/($B$32-B42) -> 0 | Y43: =SUM(D36:D43)+$C$35 -> 0 | Z43: 54.51975024 | AA43: 0.8143156422 | AB43: 52.77783256 | AC43: 52.10681954 | AD43: 0.7891571936 | AE43: 100.2200437 | AF43: -67.55 | AG43: 152.9978763 | AH43: -100.2200437 | AI43: 100.2200437 | AJ43: -23.301909 | AK43: -44.248091 | AL43: -145.9107921 | AM43: -76.83947314 | AN43: 145.9107921 | AO43: 76.83947314
B44: 10 | D44: 0 | E44: from 0 to 20 | G44: 0 | H44: 127 | I44: 75.78636092 | J44: 75.78636092 | K44: 37.89318046 | L44: 0.6141912763 | M44: 78.00229208 | N44: 156.0045842 | O44: =+C35+D36+D37+D38+D39+D40+D41+D42+D43+(D44/2) -> 0 | P44: 0 | Q44: 0 | R44: 100.22 | S44: 100.22 | T44: 100.22 | V44: 0 | X44: =SUM(V44:V74)/($B$32-B43) -> 0 | Y44: =SUM(D36:D44)+$C$35 -> 0 | Z44: 54.51975024 | AA44: 0.8143156422 | AB44: 52.77783256 | AC44: 52.10681954 | AD44: 0.7891571936 | AE44: 100.2200437 | AF44: -77.2 | AG44: 152.9978763 | AH44: -100.2200437 | AI44: 100.2200437 | AJ44: -26.63075314 | AK44: -50.56924686 | AL44: -127.6719431 | AM44: -67.234539 | AN44: 127.6719431 | AO44: 67.234539
B45: 11 | D45: 0 | E45: from 0 to 20 | G45: 0 | H45: 127 | I45: 75.78636092 | J45: 75.78636092 | K45: 37.89318046 | L45: 0.6141912763 | M45: 78.00229208 | N45: 156.0045842 | O45: =+C35+D36+D37+D38+D39+D40+D41+D42+D43+D44+(D45/2) -> 0 | P45: 0 | Q45: 0 | R45: 100.22 | S45: 100.22 | T45: 100.22 | V45: 0 | X45: =SUM(V45:V74)/($B$32-B44) -> 0 | Y45: =SUM(D36:D45)+$C$35 -> 0 | Z45: 54.51975024 | AA45: 0.8143156422 | AB45: 52.77783256 | AC45: 52.10681954 | AD45: 0.7891571936 | AE45: 100.2200437 | AF45: -86.85 | AG45: 152.9978763 | AH45: -100.2200437 | AI45: 100.2200437 | AJ45: -29.95959728 | AK45: -56.89040272 | AL45: -113.4861717 | AM45: -59.76403466 | AN45: 113.4861717 | AO45: 59.76403466
B46: 12 | D46: 0 | E46: from 0 to 20 | G46: 0 | H46: 127 | I46: 75.78636092 | J46: 75.78636092 | K46: 37.89318046 | L46: 0.6141912763 | M46: 78.00229208 | N46: 156.0045842 | O46: =+C35+D36+D37+D38+D39+D40+D41+D42+D43+D44+D45+(D46/2) -> 0 | P46: 0 | Q46: 0 | R46: 100.22 | S46: 100.22 | T46: 100.22 | V46: 0 | X46: =SUM(V46:V74)/($B$32-B45) -> 0 | Y46: =SUM(D36:D46)+$C$35 -> 0 | Z46: 54.51975024 | AA46: 0.8143156422 | AB46: 52.77783256 | AC46: 52.10681954 | AD46: 0.7891571936 | AE46: 100.2200437 | AF46: -96.5 | AG46: 152.9978763 | AH46: -100.2200437 | AI46: 100.2200437 | AJ46: -33.28844142 | AK46: -63.21155858 | AL46: -102.1375545 | AM46: -53.7876312 | AN46: 102.1375545 | AO46: 53.7876312
B47: 13 | D47: 0 | E47: from 0 to 20 | G47: 0 | H47: 127 | I47: 75.78636092 | J47: 75.78636092 | K47: 37.89318046 | L47: 0.6141912763 | M47: 78.00229208 | N47: 156.0045842 | O47: =+C35+D36+D37+D38+D39+D40+D41+D42+D43+D44+D45+D46+(D47/2) -> 0 | P47: 0 | Q47: 0 | R47: 100.22 | S47: 100.22 | T47: 100.22 | V47: 0 | X47: =SUM(V47:V74)/($B$32-B46) -> 0 | Y47: =SUM(D36:D47)+$C$35 -> 0 | Z47: 54.51975024 | AA47: 0.8143156422 | AB47: 52.77783256 | AC47: 52.10681954 | AD47: 0.7891571936 | AE47: 100.2200437 | AF47: -106.15 | AG47: 152.9978763 | AH47: -100.2200437 | AI47: 100.2200437 | AJ47: -36.61728557 | AK47: -69.53271443 | AL47: -92.85232227 | AM47: -48.89784654 | AN47: 92.85232227 | AO47: 48.89784654
B48: 14 | D48: 0 | E48: from 0 to 20 | G48: 0 | H48: 127 | I48: 75.78636092 | J48: 75.78636092 | K48: 37.89318046 | L48: 0.6141912763 | M48: 78.00229208 | N48: 156.0045842 | O48: =+C35+D36+D37+D38+D39+D40+D41+D42+D43+D44+D45+D46+D47+(D48/2) -> 0 | P48: 0 | Q48: 0 | R48: 100.22 | S48: 100.22 | T48: 100.22 | V48: 0 | X48: =SUM(V48:V74)/($B$32-B47) -> 0 | Y48: =SUM(D36:D48)+$C$35 -> 0 | Z48: 54.51975024 | AA48: 0.8143156422 | AB48: 52.77783256 | AC48: 52.10681954 | AD48: 0.7891571936 | AE48: 100.2200437 | AF48: -115.8 | AG48: 152.9978763 | AH48: -100.2200437 | AI48: 100.2200437 | AJ48: -39.94612971 | AK48: -75.85387029 | AL48: -85.11462874 | AM48: -44.823026 | AN48: 85.11462874 | AO48: 44.823026
B49: 15 | D49: 0 | E49: from 0 to 20 | G49: 0 | H49: 127 | I49: 75.78636092 | J49: 75.78636092 | K49: 37.89318046 | L49: 0.6141912763 | M49: 78.00229208 | N49: 156.0045842 | O49: =+C35+D36+D37+D38+D39+D40+D41+D42+D43+D44+D45+D46+D47+D48+(D49/2) -> 0 | P49: 0 | Q49: 0 | R49: 100.22 | S49: 100.22 | T49: 100.22 | V49: 0 | X49: =SUM(V49:V74)/($B$32-B48) -> 0 | Y49: =SUM(D36:D49)+$C$35 -> 0 | Z49: 54.51975024 | AA49: 0.8143156422 | AB49: 52.77783256 | AC49: 52.10681954 | AD49: 0.7891571936 | AE49: 100.2200437 | AF49: -125.45 | AG49: 152.9978763 | AH49: -100.2200437 | AI49: 100.2200437 | AJ49: -43.27497385 | AK49: -82.17502615 | AL49: -78.56734961 | AM49: -41.37510092 | AN49: 78.56734961 | AO49: 41.37510092
B50: 16 | D50: 0 | E50: from 0 to 20 | G50: 0 | H50: 127 | I50: 75.78636092 | J50: 75.78636092 | K50: 37.89318046 | L50: 0.6141912763 | M50: 78.00229208 | N50: 156.0045842 | O50: =+C35+D36+D37+D38+D39+D40+D41+D42+D43+D44+D45+D46+D47+D48+D49+(D50/2) -> 0 | P50: 0 | Q50: 0 | R50: 100.22 | S50: 100.22 | T50: 100.22 | V50: 0 | X50: =SUM(V50:V74)/($B$32-B49) -> 0 | Y50: =SUM(D36:D50)+$C$35 -> 0 | Z50: 54.51975024 | AA50: 0.8143156422 | AB50: 52.77783256 | AC50: 52.10681954 | AD50: 0.7891571936 | AE50: 100.2200437 | AF50: -135.1 | AG50: 152.9978763 | AH50: -100.2200437 | AI50: 100.2200437 | AJ50: -46.60381799 | AK50: -88.49618201 | AL50: -72.95539607 | AM50: -38.41973657 | AN50: 72.95539607 | AO50: 38.41973657
B51: 17 | D51: 0 | E51: from 0 to 20 | G51: 0 | H51: 127 | I51: 75.78636092 | J51: 75.78636092 | K51: 37.89318046 | L51: 0.6141912763 | M51: 78.00229208 | N51: 156.0045842 | O51: =+C35+D36+D37+D38+D39+D40+D41+D42+D43+D44+D45+D46+D47+D48+D49+D50+(D51/2) -> 0 | P51: 0 | Q51: 0 | R51: 100.22 | S51: 100.22 | T51: 100.22 | V51: 0 | X51: =SUM(V51:V74)/($B$32-B50) -> 0 | Y51: =SUM(D36:D51)+$C$35 -> 0 | Z51: 54.51975024 | AA51: 0.8143156422 | AB51: 52.77783256 | AC51: 52.10681954 | AD51: 0.7891571936 | AE51: 100.2200437 | AF51: -144.75 | AG51: 152.9978763 | AH51: -100.2200437 | AI51: 100.2200437 | AJ51: -49.93266214 | AK51: -94.81733786 | AL51: -68.091703 | AM51: -35.8584208 | AN51: 68.091703 | AO51: 35.8584208
B52: 18 | D52: 0 | E52: from 0 to 20 | G52: 0 | H52: 127 | I52: 75.78636092 | J52: 75.78636092 | K52: 37.89318046 | L52: 0.6141912763 | M52: 78.00229208 | N52: 156.0045842 | O52: =+C35+D36+D37+D38+D39+D40+D41+D42+D43+D44+D45+D46+D47+D48+D49+D50+D51+(D52/2) -> 0 | P52: 0 | Q52: 0 | R52: 100.22 | S52: 100.22 | T52: 100.22 | V52: 0 | X52: =SUM(V52:V74)/($B$32-B51) -> 0 | Y52: =SUM(D36:D52)+$C$35 -> 0 | Z52: 54.51975024 | AA52: 0.8143156422 | AB52: 52.77783256 | AC52: 52.10681954 | AD52: 0.7891571936 | AE52: 100.2200437 | AF52: -154.4 | AG52: 152.9978763 | AH52: -100.2200437 | AI52: 100.2200437 | AJ52: -53.26150628 | AK52: -101.1384937 | AL52: -63.83597156 | AM52: -33.6172695 | AN52: 63.83597156 | AO52: 33.6172695
B53: 19 | D53: 0 | E53: from 0 to 20 | G53: 0 | H53: 127 | I53: 75.78636092 | J53: 75.78636092 | K53: 37.89318046 | L53: 0.6141912763 | M53: 78.00229208 | N53: 156.0045842 | O53: =+C35+D36+D37+D38+D39+D40+D41+D42+D43+D44+D45+D46+D47+D48+D49+D50+D51+D52+(D53/2) -> 0 | P53: 0 | Q53: 0 | R53: 100.22 | S53: 100.22 | T53: 100.22 | V53: 0 | X53: =SUM(V53:V74)/($B$32-B52) -> 0 | Y53: =SUM(D36:D53)+$C$35 -> 0 | Z53: 54.51975024 | AA53: 0.8143156422 | AB53: 52.77783256 | AC53: 52.10681954 | AD53: 0.7891571936 | AE53: 100.2200437 | AF53: -164.05 | AG53: 152.9978763 | AH53: -100.2200437 | AI53: 100.2200437 | AJ53: -56.59035042 | AK53: -107.4596496 | AL53: -60.08091441 | AM53: -31.63978306 | AN53: 60.08091441 | AO53: 31.63978306
B54: 20 | D54: 0 | E54: from 0 to 20 | G54: 0 | H54: 127 | I54: 75.78636092 | J54: 75.78636092 | K54: 37.89318046 | L54: 0.6141912763 | M54: 78.00229208 | N54: 156.0045842 | O54: =+C35+D36+D37+D38+D39+D40+D41+D42+D43+D44+D45+D46+D47+D48+D49+D50+D51+D52+D53+(D54/2) -> 0 | P54: 0 | Q54: 0 | R54: 100.22 | S54: 100.22 | T54: 100.22 | V54: 0 | X54: =SUM(V54:V74)/($B$32-B53) -> 0 | Y54: =SUM(D36:D54)+$C$35 -> 0 | Z54: 54.51975024 | AA54: 0.8143156422 | AB54: 52.77783256 | AC54: 52.10681954 | AD54: 0.7891571936 | AE54: 100.2200437 | AF54: -173.7 | AG54: 152.9978763 | AH54: -100.2200437 | AI54: 100.2200437 | AJ54: -59.91919456 | AK54: -113.7808054 | AL54: -56.74308583 | AM54: -29.88201733 | AN54: 56.74308583 | AO54: 29.88201733
B55: 21 | D55: 0 | E55: from 0 to 20 | G55: 0 | H55: 127 | I55: 75.78636092 | J55: 75.78636092 | K55: 37.89318046 | L55: 0.6141912763 | M55: 78.00229208 | N55: 156.0045842 | O55: =+C35+D36+D37+D38+D39+D40+D41+D42+D43+D44+D45+D46+D47+D48+D49+D50+D51+D52+D53+D54+(D55/2) -> 0 | P55: 0 | Q55: 0 | R55: 100.22 | S55: 100.22 | T55: 100.22 | V55: 0 | X55: 0 | Y55: =SUM(D36:D55)+$C$35 -> 0 | Z55: 54.51975024 | AA55: 0.8143156422 | AB55: 52.77783256 | AC55: 52.10681954 | AD55: 0.7891571936 | AE55: 100.2200437 | AF55: -183.35 | AG55: 152.9978763 | AH55: -100.2200437 | AI55: 100.2200437 | AJ55: -63.24803871 | AK55: -120.1019613 | AL55: -53.75660763 | AM55: -28.30927958 | AN55: 53.75660763 | AO55: 28.30927958
B56: 22 | D56: 0 | E56: from 0 to 20 | G56: 0 | H56: 127 | I56: 75.78636092 | J56: 75.78636092 | K56: 37.89318046 | L56: 0.6141912763 | M56: 78.00229208 | N56: 156.0045842 | O56: =+C35+D36+D37+D38+D39+D40+D41+D42+D43+D44+D45+D46+D47+D48+D49+D50+D51+D52+D53+D54+D55+(D56/2) -> 0 | P56: 0 | Q56: 0 | R56: 100.22 | S56: 100.22 | T56: 100.22 | V56: 0 | X56: 0 | Y56: =SUM(D36:D56)+$C$35 -> 0 | Z56: 54.51975024 | AA56: 0.8143156422 | AB56: 52.77783256 | AC56: 52.10681954 | AD56: 0.7891571936 | AE56: 100.2200437 | AF56: -193 | AG56: 152.9978763 | AH56: -100.2200437 | AI56: 100.2200437 | AJ56: -66.57688285 | AK56: -126.4231172 | AL56: -51.06877725 | AM56: -26.8938156 | AN56: 51.06877725 | AO56: 26.8938156
B57: 23 | D57: 0 | E57: from 0 to 20 | G57: 0 | H57: 127 | I57: 75.78636092 | J57: 75.78636092 | K57: 37.89318046 | L57: 0.6141912763 | M57: 78.00229208 | N57: 156.0045842 | O57: =+C35+D36+D37+D38+D39+D40+D41+D42+D43+D44+D45+D46+D47+D48+D49+D50+D51+D52+D53+D54+D55+D56+(D57/2) -> 0 | P57: 0 | Q57: 0 | R57: 100.22 | S57: 100.22 | T57: 100.22 | V57: 0 | X57: 0 | Y57: =SUM(D36:D57)+$C$35 -> 0 | Z57: 54.51975024 | AA57: 0.8143156422 | AB57: 52.77783256 | AC57: 52.10681954 | AD57: 0.7891571936 | AE57: 100.2200437 | AF57: -202.65 | AG57: 152.9978763 | AH57: -100.2200437 | AI57: 100.2200437 | AJ57: -69.90572699 | AK57: -132.744273 | AL57: -48.63693071 | AM57: -25.61315771 | AN57: 48.63693071 | AO57: 25.61315771
B58: 24 | D58: 0 | E58: from 0 to 20 | G58: 0 | H58: 127 | I58: 75.78636092 | J58: 75.78636092 | K58: 37.89318046 | L58: 0.6141912763 | M58: 78.00229208 | N58: 156.0045842 | O58: =+SUM(D36:D57)+(D58/2)+C35 -> 0 | P58: 0 | Q58: 0 | R58: 100.22 | S58: 100.22 | T58: 100.22 | V58: 0 | X58: 0 | Y58: =SUM(D36:D58)+$C$35 -> 0 | Z58: 54.51975024 | AA58: 0.8143156422 | AB58: 52.77783256 | AC58: 52.10681954 | AD58: 0.7891571936 | AE58: 100.2200437 | AF58: -212.3 | AG58: 152.9978763 | AH58: -100.2200437 | AI58: 100.2200437 | AJ58: -73.23457113 | AK58: -139.0654289 | AL58: -46.42616113 | AM58: -24.44892327 | AN58: 46.42616113 | AO58: 24.44892327
B59: 25 | D59: 0 | E59: from 0 to 20 | G59: =+D59+AP59 -> 0 | H59: 127 | I59: 75.78636092 | J59: =+I59-D59 -> 75.78636092 | K59: =+J59/2 -> 37.89318046 | L59: =SIN(K59*3.14159265358979/180) -> 0.6141912763 | M59: =+L59*H59 -> 78.00229208 | N59: =+M59*2 -> 156.0045842 | O59: =+SUM(D37:D58)+(D59/2)+C36 -> 0 | P59: =SIN(O59*3.14159265358979/180) -> 0 | Q59: =+P59*N59 -> 0 | R59: =+T58 -> 100.22 | S59: =+S58+Q59 -> 100.22 | T59: =+S59 -> 100.22 | V59: =IF(B59<($B$32+1),T59,0) -> 0 | X59: 0 | Y59: =SUM(D36:D59)+$C$35 -> 0 | Z59: =54.51975024-Y59 -> 54.51975024 | AA59: =SIN(Z59*3.14159265358979/180) -> 0.8143156422 | AB59: =+AA59*64.8125 -> 52.77783256 | AC59: =52.10681954+Y59 -> 52.10681954 | AD59: =SIN(AC59*3.14159265358979/180) -> 0.7891571936 | AE59: =+AD59*126.9963 -> 100.2200437 | AF59: =9.65*($B$32-B58) -> -221.95 | AG59: =+AE59+AB59 -> 152.9978763 | AH59: =+V59-AE59 -> -100.2200437 | AI59: =+X59-AH59 -> 100.2200437 | AJ59: =+((AG59-AI59)/AG59)*AF59 -> -76.56341528 | AK59: =+(AI59/AG59)*AF59 -> -145.3865847 | AL59: =2*$K$9/AJ59 -> -44.40763239 | AM59: =2*$L$9/AK59 -> -23.38592661 | AN59: =ABS(AL59) -> 44.40763239 | AO59: =ABS(AM59) -> 23.38592661
B60: 26 | D60: 0 | E60: from 0 to 20 | G60: 0 | H60: 127 | I60: 75.78636092 | J60: 75.78636092 | K60: 37.89318046 | L60: 0.6141912763 | M60: 78.00229208 | N60: 156.0045842 | O60: 0 | P60: 0 | Q60: 0 | R60: 100.22 | S60: 100.22 | T60: 100.22 | V60: 0 | X60: 0 | Y60: =SUM(D36:D60)+$C$35 -> 0 | Z60: 54.51975024 | AA60: 0.8143156422 | AB60: 52.77783256 | AC60: 52.10681954 | AD60: 0.7891571936 | AE60: 100.2200437 | AF60: -231.6 | AG60: 152.9978763 | AH60: -100.2200437 | AI60: 100.2200437 | AJ60: -79.89225942 | AK60: -151.7077406 | AL60: -42.55731437 | AM60: -22.411513 | AN60: 42.55731437 | AO60: 22.411513
B61: 27 | D61: 0 | E61: from 0 to 20 | G61: 0 | H61: 127 | I61: 75.78636092 | J61: 75.78636092 | K61: 37.89318046 | L61: 0.6141912763 | M61: 78.00229208 | N61: 156.0045842 | O61: 0 | P61: 0 | Q61: 0 | R61: 100.22 | S61: 100.22 | T61: 100.22 | V61: 0 | X61: 0 | Y61: =SUM(D36:D61)+$C$35 -> 0 | Z61: 54.51975024 | AA61: 0.8143156422 | AB61: 52.77783256 | AC61: 52.10681954 | AD61: 0.7891571936 | AE61: 100.2200437 | AF61: -241.25 | AG61: 152.9978763 | AH61: -100.2200437 | AI61: 100.2200437 | AJ61: -83.22110356 | AK61: -158.0288964 | AL61: -40.8550218 | AM61: -21.51505248 | AN61: 40.8550218 | AO61: 21.51505248
B62: 28 | D62: 0 | E62: from 0 to 20 | G62: 0 | H62: 127 | I62: 75.78636092 | J62: 75.78636092 | K62: 37.89318046 | L62: 0.6141912763 | M62: 78.00229208 | N62: 156.0045842 | O62: 0 | P62: 0 | Q62: 0 | R62: 100.22 | S62: 100.22 | T62: 100.22 | V62: 0 | X62: 0 | Y62: =SUM(D36:D62)+$C$35 -> 0 | Z62: 54.51975024 | AA62: 0.8143156422 | AB62: 52.77783256 | AC62: 52.10681954 | AD62: 0.7891571936 | AE62: 100.2200437 | AF62: -250.9 | AG62: 152.9978763 | AH62: -100.2200437 | AI62: 100.2200437 | AJ62: -86.5499477 | AK62: -164.3500523 | AL62: -39.28367481 | AM62: -20.68755046 | AN62: 39.28367481 | AO62: 20.68755046
B63: 29 | D63: 0 | E63: from 0 to 20 | G63: 0 | H63: 127 | I63: 75.78636092 | J63: 75.78636092 | K63: 37.89318046 | L63: 0.6141912763 | M63: 78.00229208 | N63: 156.0045842 | O63: 0 | P63: 0 | Q63: 0 | R63: 100.22 | S63: 100.22 | T63: 100.22 | V63: 0 | X63: 0 | Y63: =SUM(D36:D63)+$C$35 -> 0 | Z63: 54.51975024 | AA63: 0.8143156422 | AB63: 52.77783256 | AC63: 52.10681954 | AD63: 0.7891571936 | AE63: 100.2200437 | AF63: -260.55 | AG63: 152.9978763 | AH63: -100.2200437 | AI63: 100.2200437 | AJ63: -89.87879185 | AK63: -170.6712082 | AL63: -37.82872389 | AM63: -19.92134489 | AN63: 37.82872389 | AO63: 19.92134489
B64: 30 | D64: 0 | E64: from 0 to 20 | G64: 0 | H64: 127 | I64: 75.78636092 | J64: 75.78636092 | K64: 37.89318046 | L64: 0.6141912763 | M64: 78.00229208 | N64: 156.0045842 | O64: 0 | P64: 0 | Q64: 0 | R64: 100.22 | S64: 100.22 | T64: 100.22 | V64: 0 | X64: 0 | Y64: =SUM(D36:D64)+$C$35 -> 0 | Z64: 54.51975024 | AA64: 0.8143156422 | AB64: 52.77783256 | AC64: 52.10681954 | AD64: 0.7891571936 | AE64: 100.2200437 | AF64: -270.2 | AG64: 152.9978763 | AH64: -100.2200437 | AI64: 100.2200437 | AJ64: -93.20763599 | AK64: -176.992364 | AL64: -36.47769803 | AM64: -19.20986828 | AN64: 36.47769803 | AO64: 19.20986828
B65: 31 | D65: 0 | E65: from 0 to 20 | G65: 0 | H65: 127 | I65: 75.78636092 | J65: 75.78636092 | K65: 37.89318046 | L65: 0.6141912763 | M65: 78.00229208 | N65: 156.0045842 | O65: 0 | P65: 0 | Q65: 0 | R65: 100.22 | S65: 100.22 | T65: 100.22 | V65: 0 | X65: 0 | Y65: =SUM(D36:D65)+$C$35 -> 0 | Z65: 54.51975024 | AA65: 0.8143156422 | AB65: 52.77783256 | AC65: 52.10681954 | AD65: 0.7891571936 | AE65: 100.2200437 | AF65: -279.85 | AG65: 152.9978763 | AH65: -100.2200437 | AI65: 100.2200437 | AJ65: -96.53648013 | AK65: -183.3135199 | AL65: -35.21984638 | AM65: -18.54745903 | AN65: 35.21984638 | AO65: 18.54745903
B66: 32 | D66: 0 | E66: from 0 to 20 | G66: 0 | H66: 127 | I66: 75.78636092 | J66: 75.78636092 | K66: 37.89318046 | L66: 0.6141912763 | M66: 78.00229208 | N66: 156.0045842 | O66: 0 | P66: 0 | Q66: 0 | R66: 100.22 | S66: 100.22 | T66: 100.22 | V66: 0 | X66: 0 | Y66: =SUM(D36:D66)+$C$35 -> 0 | Z66: 54.51975024 | AA66: 0.8143156422 | AB66: 52.77783256 | AC66: 52.10681954 | AD66: 0.7891571936 | AE66: 100.2200437 | AF66: -289.5 | AG66: 152.9978763 | AH66: -100.2200437 | AI66: 100.2200437 | AJ66: -99.86532427 | AK66: -189.6346757 | AL66: -34.0458515 | AM66: -17.9292104 | AN66: 34.0458515 | AO66: 17.9292104
B67: 33 | D67: 0 | E67: from 0 to 20 | G67: 0 | H67: 127 | I67: 75.78636092 | J67: 75.78636092 | K67: 37.89318046 | L67: 0.6141912763 | M67: 78.00229208 | N67: 156.0045842 | O67: 0 | P67: 0 | Q67: 0 | R67: 100.22 | S67: 100.22 | T67: 100.22 | V67: 0 | X67: 0 | Y67: =SUM(D36:D67)+$C$35 -> 0 | Z67: 54.51975024 | AA67: 0.8143156422 | AB67: 52.77783256 | AC67: 52.10681954 | AD67: 0.7891571936 | AE67: 100.2200437 | AF67: -299.15 | AG67: 152.9978763 | AH67: -100.2200437 | AI67: 100.2200437 | AJ67: -103.1941684 | AK67: -195.9558316 | AL67: -32.94759822 | AM67: -17.35084877 | AN67: 32.94759822 | AO67: 17.35084877
B68: 34 | D68: 0 | E68: from 0 to 20 | G68: 0 | H68: 127 | I68: 75.78636092 | J68: 75.78636092 | K68: 37.89318046 | L68: 0.6141912763 | M68: 78.00229208 | N68: 156.0045842 | O68: 0 | P68: 0 | Q68: 0 | R68: 100.22 | S68: 100.22 | T68: 100.22 | V68: 0 | X68: 0 | Y68: =SUM(D36:D68)+$C$35 -> 0 | Z68: 54.51975024 | AA68: 0.8143156422 | AB68: 52.77783256 | AC68: 52.10681954 | AD68: 0.7891571936 | AE68: 100.2200437 | AF68: -308.8 | AG68: 152.9978763 | AH68: -100.2200437 | AI68: 100.2200437 | AJ68: -106.5230126 | AK68: -202.2769874 | AL68: -31.91798578 | AM68: -16.80863475 | AN68: 31.91798578 | AO68: 16.80863475
B69: 35 | D69: 0 | E69: from 0 to 20 | G69: 0 | H69: 127 | I69: 75.78636092 | J69: 75.78636092 | K69: 37.89318046 | L69: 0.6141912763 | M69: 78.00229208 | N69: 156.0045842 | O69: 0 | P69: 0 | Q69: 0 | R69: 100.22 | S69: 100.22 | T69: 100.22 | V69: 0 | X69: 0 | Y69: =SUM(D36:D69)+$C$35 -> 0 | Z69: 54.51975024 | AA69: 0.8143156422 | AB69: 52.77783256 | AC69: 52.10681954 | AD69: 0.7891571936 | AE69: 100.2200437 | AF69: -318.45 | AG69: 152.9978763 | AH69: -100.2200437 | AI69: 100.2200437 | AJ69: -109.8518567 | AK69: -208.5981433 | AL69: -30.95077409 | AM69: -16.29928218 | AN69: 30.95077409 | AO69: 16.29928218
B70: 36 | D70: 0 | E70: from 0 to 20 | G70: 0 | H70: 127 | I70: 75.78636092 | J70: 75.78636092 | K70: 37.89318046 | L70: 0.6141912763 | M70: 78.00229208 | N70: 156.0045842 | O70: 0 | P70: 0 | Q70: 0 | R70: 100.22 | S70: 100.22 | T70: 100.22 | V70: 0 | X70: 0 | Y70: =SUM(D36:D70)+$C$35 -> 0 | Z70: 54.51975024 | AA70: 0.8143156422 | AB70: 52.77783256 | AC70: 52.10681954 | AD70: 0.7891571936 | AE70: 100.2200437 | AF70: -328.1 | AG70: 152.9978763 | AH70: -100.2200437 | AI70: 100.2200437 | AJ70: -113.1807008 | AK70: -214.9192992 | AL70: -30.0404572 | AM70: -15.81989153 | AN70: 30.0404572 | AO70: 15.81989153
B71: 37 | D71: 0 | E71: from 0 to 20 | G71: 0 | H71: 127 | I71: 75.78636092 | J71: 75.78636092 | K71: 37.89318046 | L71: 0.6141912763 | M71: 78.00229208 | N71: 156.0045842 | O71: 0 | P71: 0 | Q71: 0 | R71: 100.22 | S71: 100.22 | T71: 100.22 | V71: 0 | X71: 0 | Y71: =SUM(D36:D71)+$C$35 -> 0 | Z71: 54.51975024 | AA71: 0.8143156422 | AB71: 52.77783256 | AC71: 52.10681954 | AD71: 0.7891571936 | AE71: 100.2200437 | AF71: -337.75 | AG71: 152.9978763 | AH71: -100.2200437 | AI71: 100.2200437 | AJ71: -116.509545 | AK71: -221.240455 | AL71: -29.18215843 | AM71: -15.36789463 | AN71: 29.18215843 | AO71: 15.36789463
B72: 38 | D72: 0 | E72: from 0 to 20 | G72: 0 | H72: 127 | I72: 75.78636092 | J72: 75.78636092 | K72: 37.89318046 | L72: 0.6141912763 | M72: 78.00229208 | N72: 156.0045842 | O72: 0 | P72: 0 | Q72: 0 | R72: 100.22 | S72: 100.22 | T72: 100.22 | V72: 0 | X72: 0 | Y72: =SUM(D36:D72)+$C$35 -> 0 | Z72: 54.51975024 | AA72: 0.8143156422 | AB72: 52.77783256 | AC72: 52.10681954 | AD72: 0.7891571936 | AE72: 100.2200437 | AF72: -347.4 | AG72: 152.9978763 | AH72: -100.2200437 | AI72: 100.2200437 | AJ72: -119.8383891 | AK72: -227.5616109 | AL72: -28.37154291 | AM72: -14.94100867 | AN72: 28.37154291 | AO72: 14.94100867
B73: 39 | D73: 0 | E73: from 0 to 20 | G73: 0 | H73: 127 | I73: 75.78636092 | J73: 75.78636092 | K73: 37.89318046 | L73: 0.6141912763 | M73: 78.00229208 | N73: 156.0045842 | O73: 0 | P73: 0 | Q73: 0 | R73: 100.22 | S73: 100.22 | T73: 100.22 | V73: 0 | X73: 0 | Y73: =SUM(D36:D73)+$C$35 -> 0 | Z73: 54.51975024 | AA73: 0.8143156422 | AB73: 52.77783256 | AC73: 52.10681954 | AD73: 0.7891571936 | AE73: 100.2200437 | AF73: -357.05 | AG73: 152.9978763 | AH73: -100.2200437 | AI73: 100.2200437 | AJ73: -123.1672333 | AK73: -233.8827667 | AL73: -27.60474446 | AM73: -14.53719762 | AN73: 27.60474446 | AO73: 14.53719762
B74: 40 | D74: 0 | E74: from 0 to 20 | G74: 0 | H74: 127 | I74: 75.78636092 | J74: 75.78636092 | K74: 37.89318046 | L74: 0.6141912763 | M74: 78.00229208 | N74: 156.0045842 | O74: 0 | P74: 0 | Q74: 0 | R74: 100.22 | S74: 100.22 | T74: 100.22 | V74: 0 | X74: 0 | Y74: =SUM(D36:D74)+$C$35 -> 0 | Z74: 54.51975024 | AA74: 0.8143156422 | AB74: 52.77783256 | AC74: 52.10681954 | AD74: 0.7891571936 | AE74: 100.2200437 | AF74: -366.7 | AG74: 152.9978763 | AH74: -100.2200437 | AI74: 100.2200437 | AJ74: -126.4960774 | AK74: -240.2039226 | AL74: -26.87830381 | AM74: -14.15463979 | AN74: 26.87830381 | AO74: 14.15463979
AE89: 1 | AF89: 15 | AH89: =+AF89-H$11 -> -85.22 | AI89: =ABS(AH89) -> 85.22 | AJ89: =MIN(AI89:AI102) -> 5.22 | AK89: =IF(AJ89=AI89,AE89) -> FALSE
AE90: 2 | AF90: 55 | AH90: -45.22 | AI90: 45.22 | AJ90: =MIN(AI84:AI104) -> 5.22 | AK90: FALSE
AE91: 3 | AF91: =+AF90+40 -> 95 | AH91: -5.22 | AI91: 5.22 | AJ91: 5.22 | AK91: 3
AE92: 4 | AF92: 135 | AH92: 34.78 | AI92: 34.78 | AJ92: 5.22 | AK92: FALSE
AE93: 5 | AF93: 175 | AH93: 74.78 | AI93: 74.78 | AJ93: 5.22 | AK93: FALSE
AE94: 6 | AF94: 215 | AH94: 114.78 | AI94: 114.78 | AJ94: 5.22 | AK94: FALSE
AE95: 7 | AF95: 255 | AH95: 154.78 | AI95: 154.78 | AJ95: 5.22 | AK95: FALSE
AE96: 8 | AF96: 295 | AH96: 194.78 | AI96: 194.78 | AJ96: =MIN(AI85:AI105) -> 5.22 | AK96: FALSE
AE97: 9 | AF97: 335 | AH97: 234.78 | AI97: 234.78 | AJ97: =MIN(AI88:AI108) -> 5.22 | AK97: FALSE
AE98: 10 | AF98: 375 | AH98: 274.78 | AI98: 274.78 | AJ98: =MIN(AI87:AI107) -> 5.22 | AK98: FALSE
AE99: 11 | AF99: 415 | AH99: 314.78 | AI99: 314.78 | AJ99: =MIN(AI87:AI107) -> 5.22 | AK99: FALSE
AE100: 12 | AF100: 455 | AH100: 354.78 | AI100: 354.78 | AJ100: =MIN(AI86:AI106) -> 5.22 | AK100: FALSE
AE101: 13 | AF101: 495 | AH101: 394.78 | AI101: 394.78 | AJ101: =MIN(AI86:AI106) -> 5.22 | AK101: FALSE

Sheet LA 4 SUB+ LA 4
BF2: Weight total: | BG2: =+G9 -> 80.65 | BH2: kg | BI2: Total weight includes: FR 4 ( 9 kg), Main LS Cables (30 kg)
BF4: 2 motors, kg | BG4: front motor | BS4: rear motor
BG5: =+((D9-D10)/D9)*G9 -> 63.56798434 | BS5: =+(D10/D9)*G9 -> 17.08201566
BQ6: =IF(BR21=12,11) -> FALSE | BS6: =IF(BR21=12,13) -> FALSE
BO7: =IF(BQ21=11,9) -> FALSE | BS7: =IF(BQ21=11,13) -> FALSE
BM8: =IF(BP21=10,7) -> FALSE | BS8: =IF(BP21=10,13) -> FALSE
B9: L(2motors)= | D9: 480 | F9: G | G9: =+T70+T91+30+9 -> 80.65 | BK9: =IF(BO21=9,5) -> FALSE | BS9: =IF(BO21=9,13) -> FALSE
B10: a(2motors)=a-15 | D10: =+G11-15 -> 101.6660572 | F10: L | G10: =+AI76 -> 152.9980323 | J10: =AND(D59>=5,E59>=5) -> TRUE | BI10: =IF(BN21=8,3) -> FALSE | BS10: =IF(BN21=8,13) -> FALSE
F11: a | G11: =+AF76 -> 116.6660572 | J11: =IF(D59>=5,"O K ","OVERLOAD") -> O K | K11: =IF(E59>=5,"O K ","OVERLOAD") -> O K | BG11: =IF(BM21=7,1) -> FALSE | BS11: =IF(BM21=7,13) -> FALSE
J12: 1700 | K12: 1700 | BG12: =IF(BM21=61,1) -> FALSE | BS12: =IF(BM21=61,10) -> FALSE
J13: Fa=((L-a)/L)*G | K13: Fb=(a/L)*G | BG13: =IF(BL21=6,1) -> FALSE | BQ13: =IF(BL21=6,8) -> FALSE
I14: kg | J14: =+((G10-G11)/G10)*G9 -> 19.15170897 | K14: =+(G11/G10)*G9 -> 61.49829103 | BG14: =IF(BK21=5,1) -> FALSE | BO14: =IF(BK21=5,9) -> FALSE
I15: k - safety factor of FR 4 | J15: =+J12/J14 -> 88.76492446 | K15: =+K12/K14 -> 27.64304457 | BG15: =IF(BJ21=4,1) -> 1 | BM15: =IF(BJ21=4,7) -> 7
BG16: =IF(BI21=3,1) -> FALSE | BK16: =IF(BI21=3,5) -> FALSE
BG17: =IF(BH21=2,1) -> FALSE | BI17: =IF(BH21=2,3) -> FALSE
BF19: 2 points-one motor | BG19: =SUM(BG6:BG18) -> 1 | BH19: 0 | BI19: 0 | BJ19: 0 | BK19: 0 | BL19: 0 | BM19: =SUM(BM6:BM18) -> 7 | BN19: 0 | BO19: 0 | BP19: 0 | BQ19: =SUM(BQ6:BQ18) -> 0 | BR19: 0 | BS19: 0
BG21: =+CD32 -> FALSE | BH21: =+CD33 -> FALSE | BI21: =+CD34 -> FALSE | BJ21: =+CD35 -> 4 | BK21: =+CD36 -> FALSE | BL21: =+CD37 -> FALSE | BM21: =+CD38 -> FALSE | BN21: =+CD39 -> FALSE | BO21: =+CD40 -> FALSE | BP21: =+CD41 -> FALSE | BQ21: =+CD42 -> FALSE | BR21: =+CD43 -> FALSE | BS21: =+CD44 -> FALSE
BF22: 1 point-one motor | BG22: =+BG21 -> FALSE | BH22: =+BH21 -> FALSE | BI22: FALSE | BJ22: 4 | BK22: FALSE | BL22: FALSE | BM22: FALSE | BN22: FALSE | BO22: FALSE | BP22: FALSE | BQ22: FALSE | BR22: FALSE | BS22: FALSE
BG23: 1 | BH23: 2 | BI23: 3 | BJ23: 4 | BK23: 5 | BL23: 6 | BM23: 7 | BN23: 8 | BO23: 9 | BP23: 10 | BQ23: 11 | BR23: 12 | BS23: 13
BE26: center om mass | BV26: center om mass
BE27: =-+CA32 -> 101.6660572 | BV27: =+-CA44 -> -378.3339428
BX32: 1 | BY32: 15 | CA32: =+BY32-G$11 -> -101.6660572 | CB32: =ABS(CA32) -> 101.6660572 | CC32: =MIN(CB31:CB44) -> 18.33394278 | CD32: =IF(CC32=CB32,BX32) -> FALSE
BX33: 2 | BY33: 55 | CA33: -61.66605722 | CB33: 61.66605722 | CC33: =MIN(CB31:CB44) -> 18.33394278 | CD33: FALSE
BX34: 3 | BY34: =+BY33+40 -> 95 | CA34: -21.66605722 | CB34: 21.66605722 | CC34: =MIN(CB31:CB45) -> 18.33394278 | CD34: FALSE
BX35: 4 | BY35: 135 | CA35: 18.33394278 | CB35: 18.33394278 | CC35: =MIN(CB32:CB45) -> 18.33394278 | CD35: 4
BX36: 5 | BY36: 175 | CA36: 58.33394278 | CB36: 58.33394278 | CC36: =MIN(CB32:CB45) -> 18.33394278 | CD36: FALSE
BX37: 6 | BY37: 215 | CA37: 98.33394278 | CB37: 98.33394278 | CC37: =MIN(CB32:CB45) -> 18.33394278 | CD37: FALSE
BX38: 7 | BY38: 255 | CA38: 138.3339428 | CB38: 138.3339428 | CC38: =MIN(CB32:CB45) -> 18.33394278 | CD38: FALSE
BX39: 8 | BY39: 295 | CA39: 178.3339428 | CB39: 178.3339428 | CC39: =MIN(CB32:CB45) -> 18.33394278 | CD39: FALSE
BX40: 9 | BY40: 335 | CA40: 218.3339428 | CB40: 218.3339428 | CC40: =MIN(CB31:CB44) -> 18.33394278 | CD40: FALSE
BX41: 10 | BY41: 375 | CA41: 258.3339428 | CB41: 258.3339428 | CC41: =MIN(CB31:CB44) -> 18.33394278 | CD41: FALSE
BX42: 11 | BY42: 415 | CA42: 298.3339428 | CB42: 298.3339428 | CC42: =MIN(CB32:CB45) -> 18.33394278 | CD42: FALSE
BX43: 12 | BY43: 455 | CA43: 338.3339428 | CB43: 338.3339428 | CC43: =MIN(CB32:CB45) -> 18.33394278 | CD43: FALSE
BX44: 13 | BY44: 495 | CA44: 378.3339428 | CB44: 378.3339428 | CC44: =MIN(CB32:CB45) -> 18.33394278 | CD44: FALSE
D58: front | E58: rear
B59: k - safety factor of FR 4 | D59: =ABS(J15) -> 88.76492446 | E59: =ABS(K15) -> 27.64304457
B62: =IF(J10=TRUE,"O K ","OVERLOAD") -> O K
B68: enter the angle of frame FR 4
D69: =IF(BE27>0," ","change the angle of frame or of cabinets") -> 
B70: 0 | D70: =IF(BV27<0," ","change the angle of frame or of cabinets") ->  | S70: G LA 4 | T70: =+B73*32 -> 32
S71: L LA 4 | T71: 153
B72: enter the number of cabinets from 1 up to 12 | S72: x sc 8
B73: 1 | D73: LA 4 SUB | AQ73: k - safety factor
H74: d | I74: K | J74: b | K74: b/2 | L74: sin b/2 | M74: c=sin(b/2)*d | N74: 2c | O74: e=a/2 | P74: sin(e) | Q74: f=sin(e)*2c | R74: g center of mass -x | S74: h=g+f | T74: center of mass X | AF74: САМО ЗА LA 4 SUB И LA 4 | AH74: САМО ЗА LA 4 SUB И LA 4 | AK74: САМО ЗА LA 4 SUB И LA 4
X75: z- център на тежест на боксовете след него спрямо първата колона | Y75: a - общ ъгъл | Z75: t= 58.15-a | AA75: sin t | AB75: m= sin t *n(const) | AC75: a | AD75: sin r | AE75: p= sin r *q(const) | AF75: x= (SUM Gi*xi)/G | AG75: g SC8 - тегло на боксожете под тази | AH75: G g SC8+LA 12 - тегло на боксожете под тази +LA12 | AI75: L=m-p | AJ75: J=x-p | AK75: Asc8+la12 =x-J | AL75: Asc8=z-J | AM75: Fa=((L-A)/L)*G | AN75: Fb=(A/L)*G | AO75: front | AP75: rear | AQ75: front | AR75: rear
B76: 1 | C76: =+(B70*-1)+D76 -> 0 | D76: 0 | H76: 323.5 | I76: 88.87290626 | J76: =+I76-C76 -> 88.87290626 | K76: =+J76/2 -> 44.43645313 | L76: =SIN(K76*3.14159265358979/180) -> 0.7001177658 | M76: =+L76*H76 -> 226.4880972 | N76: =+M76*2 -> 452.9761945 | O76: =+C76/2 -> 0 | P76: =SIN(O76*3.14159265358979/180) -> 0 | Q76: =+P76*N76 -> 0 | R76: 231 | S76: =+R76+Q76 -> 231 | T76: =+S76 -> 231 | V76: =IF(B76<($B$73+1),T76,0) -> 231 | X76: =SUM(V76:V87)/($B$73) -> 231 | Y76: =+D76+C76 -> 0 | Z76: =157.42570277-$Y$76 -> 157.4257028 | AA76: =SIN(Z76*3.14159265358979/180) -> 0.3838811338 | AB76: =+AA76*203.18 -> 77.99696876 | AC76: =45.56354687+$Y$76 -> 45.56354687 | AD76: =SIN(AC76*3.14159265358979/180) -> 0.7140273903 | AE76: =+AD76*323.51 -> 230.995001 | AF76: =+((X76*AG76)+($AG$97*$X$97))/AH76 -> 116.6660572 | AG76: =32*B73 -> 32 | AH76: =+AG76+$AG$97+30 -> 71.65 | AI76: =+AE76-AB76 -> 152.9980323 | AJ76: =+V76-AE76 -> 0.004998979566 | AK76: =+AF76-AJ76 -> 116.6610582 | AL76: =+X76-AJ76 -> 230.995001 | AM76: =+((AI76-AK76)/AI76)*AH76 -> 17.01684754 | AN76: =+(AK76/AI76)*AH76 -> 54.63315246 | AO76: =2*$J$12/AM76 -> 199.8019899 | AP76: =2*$K$12/AN76 -> 62.23327497 | AQ76: =ABS(AO76) -> 199.8019899 | AR76: =ABS(AP76) -> 62.23327497
B77: 2 | D77: 0 | H77: 323.5 | I77: 88.87290626 | J77: =+I77-D77 -> 88.87290626 | K77: 44.43645313 | L77: 0.7001177658 | M77: 226.4880972 | N77: 452.9761945 | O77: =+C76+(D77/2) -> 0 | P77: 0 | Q77: 0 | R77: =+T76 -> 231 | S77: =+R77+Q77 -> 231 | T77: 231 | V77: 0 | X77: =SUM(V77:V87)/($B$73-B76) ->  | Z77: =157.42570277-$Y$76 -> 157.4257028 | AA77: =SIN(Z77*3.14159265358979/180) -> 0.3838811338 | AB77: =+AA77*203.18 -> 77.99696876 | AC77: =45.56354687+$Y$76 -> 45.56354687 | AD77: =SIN(AC77*3.14159265358979/180) -> 0.7140273903 | AE77: =+AD77*323.51 -> 230.995001 | AF77: =+((X77*AG77)+($AG$97*$X$97))/AH77 ->  | AG77: =32*($B$73-B76) -> 0 | AH77: =+AG77+$AG$97+30 -> 39.65 | AI77: =+AE77-AB77 -> 152.9980323 | AJ77: =+V77-AE77 -> -230.995001 | AK77: =+AF77-AJ77 ->  | AL77: =+X77-AJ77 ->  | AM77: =+((AI77-AK77)/AI77)*AH77 ->  | AN77: =+(AK77/AI77)*AH77 ->  | AQ77: =ABS(AO77) ->  | AR77: =ABS(AP77) -> 
B78: 3 | D78: 0 | H78: 323.5 | I78: 88.87290626 | J78: 88.87290626 | K78: 44.43645313 | L78: 0.7001177658 | M78: 226.4880972 | N78: 452.9761945 | O78: =+C76+D77+(D78/2) -> 0 | P78: 0 | Q78: 0 | R78: 231 | S78: =+S77+Q78 -> 231 | T78: 231 | V78: 0 | X78: =SUM(V78:V87)/($B$73-B77) -> 0 | Z78: 157.4257028 | AA78: =SIN(Z78*3.14159265358979/180) -> 0.3838811338 | AB78: 77.99696876 | AC78: 45.56354687 | AD78: 0.7140273903 | AE78: 230.995001 | AF78: 126.4213072 | AG78: =32*($B$73-B77) -> -32 | AH78: 7.65 | AI78: 152.9980323 | AJ78: =+V78-AE78 -> -230.995001 | AK78: 357.4163082 | AL78: =+X78-AJ78 -> 230.995001 | AM78: -10.22104525 | AN78: 17.87104525 | AO78: -332.6469961 | AP78: 190.2518824 | AQ78: 332.6469961 | AR78: 190.2518824
B79: 4 | D79: 0 | H79: 323.5 | I79: 88.87290626 | J79: 88.87290626 | K79: 44.43645313 | L79: 0.7001177658 | M79: 226.4880972 | N79: 452.9761945 | O79: =+C76+D77+D78+(D79/2) -> 0 | P79: 0 | Q79: 0 | R79: 231 | S79: 231 | T79: 231 | V79: 0 | X79: =SUM(V79:V87)/($B$73-B78) -> 0 | Z79: 157.4257028 | AA79: 0.3838811338 | AB79: 77.99696876 | AC79: 45.56354687 | AD79: 0.7140273903 | AE79: 230.995001 | AF79: -39.717577 | AG79: -64 | AH79: -24.35 | AI79: 152.9980323 | AJ79: =+V79-AE79 -> -230.995001 | AK79: 191.277424 | AL79: =+X79-AJ79 -> 230.995001 | AM79: 6.092256061 | AN79: -30.44225606 | AO79: 558.0855378 | AP79: -111.6868603 | AQ79: 558.0855378 | AR79: 111.6868603
B80: 5 | D80: 0 | H80: 323.5 | I80: 88.87290626 | J80: 88.87290626 | K80: 44.43645313 | L80: 0.7001177658 | M80: 226.4880972 | N80: 452.9761945 | O80: =+C76+D77+D78+D79+(D80/2) -> 0 | P80: 0 | Q80: 0 | R80: 231 | S80: 231 | T80: 231 | V80: 0 | X80: =SUM(V80:V87)/($B$73-B79) -> 0 | Z80: 157.4257028 | AA80: 0.3838811338 | AB80: 77.99696876 | AC80: 45.56354687 | AD80: 0.7140273903 | AE80: 230.995001 | AF80: -17.16278616 | AG80: -96 | AH80: -56.35 | AI80: 152.9980323 | AJ80: =+V80-AE80 -> -230.995001 | AK80: 213.8322149 | AL80: 230.995001 | AM80: 22.40555737 | AN80: -78.75555737 | AO80: 151.748066 | AP80: -43.17155657 | AQ80: 151.748066 | AR80: 43.17155657
B81: 6 | D81: 0 | H81: 323.5 | I81: 88.87290626 | J81: 88.87290626 | K81: 44.43645313 | L81: 0.7001177658 | M81: 226.4880972 | N81: 452.9761945 | O81: =+C76+D77+D78+D79+D80+(D81/2) -> 0 | P81: 0 | Q81: 0 | R81: 231 | S81: 231 | T81: 231 | V81: 0 | X81: =SUM(V81:V87)/($B$73-B80) -> 0 | Z81: 157.4257028 | AA81: 0.3838811338 | AB81: 77.99696876 | AC81: 45.56354687 | AD81: 0.7140273903 | AE81: 230.995001 | AF81: -10.94649689 | AG81: -128 | AH81: -88.35 | AI81: 152.9980323 | AJ81: -230.995001 | AK81: 220.0485041 | AL81: 230.995001 | AM81: 38.71885869 | AN81: -127.0688587 | AO81: 87.81250573 | AP81: -26.75714597 | AQ81: 87.81250573 | AR81: 26.75714597
B82: 7 | D82: 0 | H82: 323.5 | I82: 88.87290626 | J82: 88.87290626 | K82: 44.43645313 | L82: 0.7001177658 | M82: 226.4880972 | N82: 452.9761945 | O82: =+C76+D77+D78+D79+D80+D81+(D82/2) -> 0 | P82: 0 | Q82: 0 | R82: 231 | S82: 231 | T82: 231 | V82: 0 | X82: =SUM(V82:V87)/($B$73-B81) -> 0 | Z82: 157.4257028 | AA82: 0.3838811338 | AB82: 77.99696876 | AC82: 45.56354687 | AD82: 0.7140273903 | AE82: 230.995001 | AF82: -8.035920233 | AG82: -160 | AH82: -120.35 | AI82: 152.9980323 | AJ82: -230.995001 | AK82: 222.9590808 | AL82: 230.995001 | AM82: 55.03216 | AN82: -175.38216 | AO82: 61.78205617 | AP82: -19.38623632 | AQ82: 61.78205617 | AR82: 19.38623632
B83: 8 | D83: 0 | H83: 323.5 | I83: 88.87290626 | J83: 88.87290626 | K83: 44.43645313 | L83: 0.7001177658 | M83: 226.4880972 | N83: 452.9761945 | O83: =+C76+D77+D78+D79+D80+D81+D82+(D83/2) -> 0 | P83: 0 | Q83: 0 | R83: 231 | S83: 231 | T83: 231 | V83: 0 | X83: =SUM(V83:V87)/($B$73-B82) -> 0 | Z83: 157.4257028 | AA83: 0.3838811338 | AB83: 77.99696876 | AC83: 45.56354687 | AD83: 0.7140273903 | AE83: 230.995001 | AF83: -6.348034132 | AG83: -192 | AH83: -152.35 | AI83: 152.9980323 | AJ83: -230.995001 | AK83: 224.6469669 | AL83: 230.995001 | AM83: 71.34546131 | AN83: -223.6954613 | AO83: 47.6554491 | AP83: -15.19923551 | AQ83: 47.6554491 | AR83: 15.19923551
B84: 9 | D84: 0 | H84: 323.5 | I84: 88.87290626 | J84: 88.87290626 | K84: 44.43645313 | L84: 0.7001177658 | M84: 226.4880972 | N84: 452.9761945 | O84: =+C76+D77+D78+D79+D80+D81+D82+D83+(D84/2) -> 0 | P84: 0 | Q84: 0 | R84: 231 | S84: 231 | T84: 231 | V84: 0 | X84: =SUM(V84:V87)/($B$73-B83) -> 0 | Z84: 157.4257028 | AA84: 0.3838811338 | AB84: 77.99696876 | AC84: 45.56354687 | AD84: 0.7140273903 | AE84: 230.995001 | AF84: -5.24612422 | AG84: -224 | AH84: -184.35 | AI84: 152.9980323 | AJ84: -230.995001 | AK84: 225.7488768 | AL84: 230.995001 | AM84: 87.65876262 | AN84: -272.0087626 | AO84: 38.78676699 | AP84: -12.49959732 | AQ84: 38.78676699 | AR84: 12.49959732
B85: 10 | D85: 0 | H85: 323.5 | I85: 88.87290626 | J85: 88.87290626 | K85: 44.43645313 | L85: 0.7001177658 | M85: 226.4880972 | N85: 452.9761945 | O85: =+C76+D77+D78+D79+D80+D81+D82+D83+D84+(D85/2) -> 0 | P85: 0 | Q85: 0 | R85: 231 | S85: 231 | T85: 231 | V85: 0 | X85: =SUM(V85:V87)/($B$73-B84) -> 0 | Z85: 157.4257028 | AA85: 0.3838811338 | AB85: 77.99696876 | AC85: 45.56354687 | AD85: 0.7140273903 | AE85: 230.995001 | AF85: -4.470177952 | AG85: -256 | AH85: -216.35 | AI85: 152.9980323 | AJ85: -230.995001 | AK85: 226.5248231 | AL85: 230.995001 | AM85: 103.9720639 | AN85: -320.3220639 | AO85: 32.70109173 | AP85: -10.61431722 | AQ85: 32.70109173 | AR85: 10.61431722
B86: 11 | D86: 0 | H86: 323.5 | I86: 88.87290626 | J86: 88.87290626 | K86: 44.43645313 | L86: 0.7001177658 | M86: 226.4880972 | N86: 452.9761945 | O86: =+C76+D77+D78+D79+D80+D81+D82+D83+D84+D85+(D86/2) -> 0 | P86: 0 | Q86: 0 | R86: 231 | S86: 231 | T86: 231 | V86: 0 | X86: =SUM(V86:V87)/($B$73-B85) -> 0 | Z86: 157.4257028 | AA86: 0.3838811338 | AB86: 77.99696876 | AC86: 45.56354687 | AD86: 0.7140273903 | AE86: 230.995001 | AF86: -3.894193678 | AG86: -288 | AH86: -248.35 | AI86: 152.9980323 | AJ86: -230.995001 | AK86: 227.1008073 | AL86: 230.995001 | AM86: 120.2853652 | AN86: -368.6353652 | AO86: 28.26611528 | AP86: -9.223206237 | AQ86: 28.26611528 | AR86: 9.223206237
B87: 12 | D87: 0 | H87: 323.5 | I87: 88.87290626 | J87: 88.87290626 | K87: 44.43645313 | L87: 0.7001177658 | M87: 226.4880972 | N87: 452.9761945 | O87: =+C76+D77+D78+D79+D80+D81+D82+D83+D84+D85+D86+(D87/2) -> 0 | P87: 0 | Q87: 0 | R87: 231 | S87: 231 | T87: 231 | V87: 0 | X87: =SUM(V87)/($B$73-B86) -> 0 | Z87: 157.4257028 | AA87: 0.3838811338 | AB87: 77.99696876 | AC87: 45.56354687 | AD87: 0.7140273903 | AE87: 230.995001 | AF87: -3.449698591 | AG87: -320 | AH87: -280.35 | AI87: 152.9980323 | AJ87: -230.995001 | AK87: 227.5453024 | AL87: 230.995001 | AM87: 136.5986666 | AN87: -416.9486666 | AO87: 24.89043331 | AP87: -8.154481049 | AQ87: 24.89043331 | AR87: 8.154481049
S91: G LA 4 | T91: =+B94*9.65 -> 9.65
S92: L LA 4 | T92: 153
B93: enter the number of cabinets from 1 up to 24 | S93: x LA 4 | T93: =SUM(V97:V120)/B94 -> 100.22
B94: 1 | D94: LA 4 | AQ94: k - safety factor
H95: d | I95: k | J95: b | K95: b/2 | L95: sin b/2 | M95: c=sin(b/2)*d | N95: 2c | O95: e=a/2 | P95: sin(e) | Q95: f=sin(e)*2c | R95: g center of mass -x | S95: h=g+f | T95: center of mass X | AO95: НЕ РАБОТИ ЦВЕТОВЕТЕ!!!
D96: enter the value of a-angle | X96: z- център на тежест на боксовете след него спрямо първата колона | Y96: a - общ ъгъл | Z96: t= 54.51-a | AA96: sin t | AB96: m= sin t *n(const) | AC96: r= 52.1+a | AD96: sin r | AE96: p= sin r *q(const) | AG96: g - тегло на боксожете под тази | AI96: L=m+n | AJ96: J=x-p | AL96: A=z-J | AM96: Fa=((L-A)/L)*G | AN96: Fb=(A/L)*G | AO96: front | AP96: rear | AQ96: front | AR96: rear
B97: 1 | C97: =+(B70*-1)+D97 -> 0 | D97: 0 | E97: from 0 to 10 | G97: =+D97 -> 0 | H97: 127 | I97: 75.78636092 | J97: =+I97-C97 -> 75.78636092 | K97: =+J97/2 -> 37.89318046 | L97: =SIN(K97*3.14159265358979/180) -> 0.6141912763 | M97: =+L97*H97 -> 78.00229208 | N97: =+M97*2 -> 156.0045842 | O97: =+C97/2 -> 0 | P97: =SIN(O97*3.14159265358979/180) -> 0 | Q97: =+P97*N97 -> 0 | R97: 100.22 | S97: =+R97+Q97 -> 100.22 | T97: =+S97 -> 100.22 | V97: =IF(B97<($B$94+1),T97,0) -> 100.22 | X97: =SUM(V97:V120)/($B$94) -> 100.22 | Y97: =C97 -> 0 | Z97: =54.51975024-Y97 -> 54.51975024 | AA97: =SIN(Z97*3.14159265358979/180) -> 0.8143156422 | AB97: =+AA97*64.8125 -> 52.77783256 | AC97: =52.10681954+Y97 -> 52.10681954 | AD97: =SIN(AC97*3.14159265358979/180) -> 0.7891571936 | AE97: =+AD97*126.9963 -> 100.2200437 | AG97: =9.65*B94 -> 9.65 | AI97: =+AE97+AB97 -> 152.9978763 | AJ97: =+V97-AE97 -> -4.370235216e-05 | AL97: =+X97-AJ97 -> 100.2200437 | AM97: =+((AI97-AL97)/AI97)*AG97 -> 3.328844142 | AN97: =+(AL97/AI97)*AG97 -> 6.321155858 | AO97: =2*$J$12/AM97 -> 1021.375545 | AP97: =2*$K$12/AN97 -> 537.876312 | AQ97: =ABS(AO97) -> 1021.375545 | AR97: =ABS(AP97) -> 537.876312
B98: 2 | D98: 0 | E98: from 0 to 20 | G98: =+D98+AS98 -> 0 | H98: 127 | I98: 75.78636092 | J98: =+I98-D98 -> 75.78636092 | K98: 37.89318046 | L98: 0.6141912763 | M98: 78.00229208 | N98: 156.0045842 | O98: =+C97+(D98/2) -> 0 | P98: 0 | Q98: 0 | R98: =+T97 -> 100.22 | S98: =+R98+Q98 -> 100.22 | T98: 100.22 | V98: 0 | X98: =SUM(V98:V121)/($B$94-B97) ->  | Y98: =SUM(D98)+$C$97 -> 0 | Z98: =54.51975024-Y98 -> 54.51975024 | AA98: 0.8143156422 | AB98: =+AA98*64.8125 -> 52.77783256 | AC98: =52.10681954+Y98 -> 52.10681954 | AD98: =SIN(AC98*3.14159265358979/180) -> 0.7891571936 | AE98: =+AD98*126.9963 -> 100.2200437 | AG98: =9.65*($B$94-B97) -> 0 | AI98: =+AE98+AB98 -> 152.9978763 | AJ98: =+V98-AE98 -> -100.2200437 | AL98: =+X98-AJ98 ->  | AM98: =+((AI98-AL98)/AI98)*AG98 ->  | AN98: =+(AL98/AI98)*AG98 ->  | AP98: =2*$K$12/AN98 ->  | AQ98: =ABS(AO98) -> 
B99: 3 | D99: 0 | E99: from 0 to 20 | G99: =+D99+AS99 -> 0 | H99: 127 | I99: 75.78636092 | J99: 75.78636092 | K99: 37.89318046 | L99: 0.6141912763 | M99: 78.00229208 | N99: 156.0045842 | O99: =+C97+D98+(D99/2) -> 0 | P99: 0 | Q99: 0 | R99: 100.22 | S99: =+S98+Q99 -> 100.22 | T99: 100.22 | V99: 0 | X99: =SUM(V99:V122)/($B$94-B98) -> 0 | Y99: =SUM(D98:D99)+$C$97 -> 0 | Z99: 54.51975024 | AA99: 0.8143156422 | AB99: 52.77783256 | AC99: 52.10681954 | AD99: 0.7891571936 | AE99: 100.2200437 | AG99: =9.65*($B$94-B98) -> -9.65 | AI99: 152.9978763 | AJ99: =+V99-AE99 -> -100.2200437 | AL99: =+X99-AJ99 -> 100.2200437 | AM99: -3.328844142 | AN99: -6.321155858 | AO99: -1021.375545 | AP99: -537.876312 | AQ99: 1021.375545 | AR99: 537.876312
B100: 4 | D100: 6 | E100: from 0 to 20 | G100: 6 | H100: 127 | I100: 75.78636092 | J100: 69.78636092 | K100: 34.89318046 | L100: 0.5720482521 | M100: 72.65012802 | N100: 145.300256 | O100: =+C97+D98+D99+(D100/2) -> 3 | P100: 0.05233595624 | Q100: 7.604427842 | R100: 100.22 | S100: 107.8244278 | T100: 107.8244278 | V100: 0 | X100: 0 | Y100: =SUM(D98:D100)+$C$97 -> 6 | Z100: 48.51975024 | AA100: 0.7491840859 | AB100: 48.55649357 | AC100: 58.10681954 | AD100: 0.8490345782 | AE100: 107.82425 | AG100: -19.3 | AI100: 156.3807436 | AJ100: =+V100-AE100 -> -107.82425 | AL100: =+X100-AJ100 -> 107.82425 | AM100: -5.992683654 | AN100: -13.30731635 | AO100: -567.3584985 | AP100: -255.4985477 | AQ100: 567.3584985 | AR100: 255.4985477
B101: 5 | D101: 0 | E101: from 0 to 20 | G101: =+D101+AS101 -> 0 | H101: 127 | I101: 75.78636092 | J101: 75.78636092 | K101: 37.89318046 | L101: 0.6141912763 | M101: 78.00229208 | N101: 156.0045842 | O101: =+C97+D98+D99+D100+(D101/2) -> 6 | P101: 0.1045284633 | Q101: 16.30691945 | R101: 107.8244278 | S101: 124.1313473 | T101: 124.1313473 | V101: 0 | X101: 0 | Y101: =SUM(D98:D101)+$C$97 -> 6 | Z101: 48.51975024 | AA101: 0.7491840859 | AB101: 48.55649357 | AC101: 58.10681954 | AD101: 0.8490345782 | AE101: 107.82425 | AG101: -28.95 | AI101: 156.3807436 | AJ101: =+V101-AE101 -> -107.82425 | AL101: 107.82425 | AM101: -8.989025482 | AN101: -19.96097452 | AO101: -378.238999 | AP101: -170.3323651 | AQ101: 378.238999 | AR101: 170.3323651
B102: 6 | D102: 0 | E102: from 0 to 20 | G102: 0 | H102: 127 | I102: 75.78636092 | J102: 75.78636092 | K102: 37.89318046 | L102: 0.6141912763 | M102: 78.00229208 | N102: 156.0045842 | O102: =+C97+D98+D99+D100+D101+(D102/2) -> 6 | P102: 0.1045284633 | Q102: 16.30691945 | R102: 124.1313473 | S102: 140.4382667 | T102: 140.4382667 | V102: 0 | X102: 0 | Y102: =SUM(D98:D102)+$C$97 -> 6 | Z102: 48.51975024 | AA102: 0.7491840859 | AB102: 48.55649357 | AC102: 58.10681954 | AD102: 0.8490345782 | AE102: 107.82425 | AG102: -38.6 | AI102: 156.3807436 | AJ102: -107.82425 | AL102: 107.82425 | AM102: -11.98536731 | AN102: -26.61463269 | AO102: -283.6792492 | AP102: -127.7492738 | AQ102: 283.6792492 | AR102: 127.7492738
B103: 7 | D103: 0 | E103: from 0 to 20 | G103: 0 | H103: 127 | I103: 75.78636092 | J103: 75.78636092 | K103: 37.89318046 | L103: 0.6141912763 | M103: 78.00229208 | N103: 156.0045842 | O103: =+C97+D98+D99+D100+D101+D102+(D103/2) -> 6 | P103: 0.1045284633 | Q103: 16.30691945 | R103: 140.4382667 | S103: 156.7451862 | T103: 156.7451862 | V103: 0 | X103: 0 | Y103: =SUM(D98:D103)+$C$97 -> 6 | Z103: 48.51975024 | AA103: 0.7491840859 | AB103: 48.55649357 | AC103: 58.10681954 | AD103: 0.8490345782 | AE103: 107.82425 | AG103: -48.25 | AI103: 156.3807436 | AJ103: -107.82425 | AL103: 107.82425 | AM103: -14.98170914 | AN103: -33.26829086 | AO103: -226.9433994 | AP103: -102.1994191 | AQ103: 226.9433994 | AR103: 102.1994191
B104: 8 | D104: 0 | E104: from 0 to 20 | G104: 0 | H104: 127 | I104: 75.78636092 | J104: 75.78636092 | K104: 37.89318046 | L104: 0.6141912763 | M104: 78.00229208 | N104: 156.0045842 | O104: =+C97+D98+D99+D100+D101+D102+D103+(D104/2) -> 6 | P104: 0.1045284633 | Q104: 16.30691945 | R104: 156.7451862 | S104: 173.0521056 | T104: 173.0521056 | V104: 0 | X104: 0 | Y104: =SUM(D98:D104)+$C$97 -> 6 | Z104: 48.51975024 | AA104: 0.7491840859 | AB104: 48.55649357 | AC104: 58.10681954 | AD104: 0.8490345782 | AE104: 107.82425 | AG104: -57.9 | AI104: 156.3807436 | AJ104: -107.82425 | AL104: 107.82425 | AM104: -17.97805096 | AN104: -39.92194904 | AO104: -189.1194995 | AP104: -85.16618256 | AQ104: 189.1194995 | AR104: 85.16618256
B105: 9 | D105: 0 | E105: from 0 to 20 | G105: 0 | H105: 127 | I105: 75.78636092 | J105: 75.78636092 | K105: 37.89318046 | L105: 0.6141912763 | M105: 78.00229208 | N105: 156.0045842 | O105: =+C97+D98+D99+D100+D101+D102+D103+D104+(D105/2) -> 6 | P105: 0.1045284633 | Q105: 16.30691945 | R105: 173.0521056 | S105: 189.3590251 | T105: 189.3590251 | V105: 0 | X105: 0 | Y105: =SUM(D98:D105)+$C$97 -> 6 | Z105: 48.51975024 | AA105: 0.7491840859 | AB105: 48.55649357 | AC105: 58.10681954 | AD105: 0.8490345782 | AE105: 107.82425 | AG105: -67.55 | AI105: 156.3807436 | AJ105: -107.82425 | AL105: 107.82425 | AM105: -20.97439279 | AN105: -46.57560721 | AO105: -162.1024281 | AP105: -72.99958506 | AQ105: 162.1024281 | AR105: 72.99958506
B106: 10 | D106: 0 | E106: from 0 to 20 | G106: 0 | H106: 127 | I106: 75.78636092 | J106: 75.78636092 | K106: 37.89318046 | L106: 0.6141912763 | M106: 78.00229208 | N106: 156.0045842 | O106: =+C97+D98+D99+D100+D101+D102+D103+D104+D105+(D106/2) -> 6 | P106: 0.1045284633 | Q106: 16.30691945 | R106: 189.3590251 | S106: 205.6659445 | T106: 205.6659445 | V106: 0 | X106: 0 | Y106: =SUM(D98:D106)+$C$97 -> 6 | Z106: 48.51975024 | AA106: 0.7491840859 | AB106: 48.55649357 | AC106: 58.10681954 | AD106: 0.8490345782 | AE106: 107.82425 | AG106: -77.2 | AI106: 156.3807436 | AJ106: -107.82425 | AL106: 107.82425 | AM106: -23.97073462 | AN106: -53.22926538 | AO106: -141.8396246 | AP106: -63.87463692 | AQ106: 141.8396246 | AR106: 63.87463692
B107: 11 | D107: 0 | E107: from 0 to 20 | G107: 0 | H107: 127 | I107: 75.78636092 | J107: 75.78636092 | K107: 37.89318046 | L107: 0.6141912763 | M107: 78.00229208 | N107: 156.0045842 | O107: =+C97+D98+D99+D100+D101+D102+D103+D104+D105+D106+(D107/2) -> 6 | P107: 0.1045284633 | Q107: 16.30691945 | R107: 205.6659445 | S107: 221.972864 | T107: 221.972864 | V107: 0 | X107: 0 | Y107: =SUM(D98:D107)+$C$97 -> 6 | Z107: 48.51975024 | AA107: 0.7491840859 | AB107: 48.55649357 | AC107: 58.10681954 | AD107: 0.8490345782 | AE107: 107.82425 | AG107: -86.85 | AI107: 156.3807436 | AJ107: -107.82425 | AL107: 107.82425 | AM107: -26.96707644 | AN107: -59.88292356 | AO107: -126.0796663 | AP107: -56.77745504 | AQ107: 126.0796663 | AR107: 56.77745504
B108: 12 | D108: 0 | E108: from 0 to 20 | G108: 0 | H108: 127 | I108: 75.78636092 | J108: 75.78636092 | K108: 37.89318046 | L108: 0.6141912763 | M108: 78.00229208 | N108: 156.0045842 | O108: =+C97+D98+D99+D100+D101+D102+D103+D104+D105+D106+D107+(D108/2) -> 6 | P108: 0.1045284633 | Q108: 16.30691945 | R108: 221.972864 | S108: 238.2797834 | T108: 238.2797834 | V108: 0 | X108: 0 | Y108: =SUM(D98:D108)+$C$97 -> 6 | Z108: 48.51975024 | AA108: 0.7491840859 | AB108: 48.55649357 | AC108: 58.10681954 | AD108: 0.8490345782 | AE108: 107.82425 | AG108: -96.5 | AI108: 156.3807436 | AJ108: -107.82425 | AL108: 107.82425 | AM108: -29.96341827 | AN108: -66.53658173 | AO108: -113.4716997 | AP108: -51.09970954 | AQ108: 113.4716997 | AR108: 51.09970954
B109: 13 | D109: 0 | E109: from 0 to 20 | G109: 0 | H109: 127 | I109: 75.78636092 | J109: 75.78636092 | K109: 37.89318046 | L109: 0.6141912763 | M109: 78.00229208 | N109: 156.0045842 | O109: =+C97+D98+D99+D100+D101+D102+D103+D104+D105+D106+D107+D108+(D109/2) -> 6 | P109: 0.1045284633 | Q109: 16.30691945 | R109: 238.2797834 | S109: 254.5867029 | T109: 254.5867029 | V109: 0 | X109: 0 | Y109: =SUM(D98:D109)+$C$97 -> 6 | Z109: 48.51975024 | AA109: 0.7491840859 | AB109: 48.55649357 | AC109: 58.10681954 | AD109: 0.8490345782 | AE109: 107.82425 | AG109: -106.15 | AI109: 156.3807436 | AJ109: -107.82425 | AL109: 107.82425 | AM109: -32.9597601 | AN109: -73.1902399 | AO109: -103.1560906 | AP109: -46.4542814 | AQ109: 103.1560906 | AR109: 46.4542814
B110: 14 | D110: 0 | E110: from 0 to 20 | G110: 0 | H110: 127 | I110: 75.78636092 | J110: 75.78636092 | K110: 37.89318046 | L110: 0.6141912763 | M110: 78.00229208 | N110: 156.0045842 | O110: =+C97+D98+D99+D100+D101+D102+D103+D104+D105+D106+D107+D108+D109+(D110/2) -> 6 | P110: 0.1045284633 | Q110: 16.30691945 | R110: 254.5867029 | S110: 270.8936223 | T110: 270.8936223 | V110: 0 | X110: 0 | Y110: =SUM(D98:D110)+$C$97 -> 6 | Z110: 48.51975024 | AA110: 0.7491840859 | AB110: 48.55649357 | AC110: 58.10681954 | AD110: 0.8490345782 | AE110: 107.82425 | AG110: -115.8 | AI110: 156.3807436 | AJ110: -107.82425 | AL110: 107.82425 | AM110: -35.95610193 | AN110: -79.84389807 | AO110: -94.55974975 | AP110: -42.58309128 | AQ110: 94.55974975 | AR110: 42.58309128
B111: 15 | D111: 0 | E111: from 0 to 20 | G111: 0 | H111: 127 | I111: 75.78636092 | J111: 75.78636092 | K111: 37.89318046 | L111: 0.6141912763 | M111: 78.00229208 | N111: 156.0045842 | O111: =+C97+D98+D99+D100+D101+D102+D103+D104+D105+D106+D107+D108+D109+D110+(D111/2) -> 6 | P111: 0.1045284633 | Q111: 16.30691945 | R111: 270.8936223 | S111: 287.2005417 | T111: 287.2005417 | V111: 0 | X111: 0 | Y111: =SUM(D98:D111)+$C$97 -> 6 | Z111: 48.51975024 | AA111: 0.7491840859 | AB111: 48.55649357 | AC111: 58.10681954 | AD111: 0.8490345782 | AE111: 107.82425 | AG111: -125.45 | AI111: 156.3807436 | AJ111: -107.82425 | AL111: 107.82425 | AM111: -38.95244375 | AN111: -86.49755625 | AO111: -87.28592284 | AP111: -39.30746888 | AQ111: 87.28592284 | AR111: 39.30746888
B112: 16 | D112: 0 | E112: from 0 to 20 | G112: 0 | H112: 127 | I112: 75.78636092 | J112: 75.78636092 | K112: 37.89318046 | L112: 0.6141912763 | M112: 78.00229208 | N112: 156.0045842 | O112: =+C97+D98+D99+D100+D101+D102+D103+D104+D105+D106+D107+D108+D109+D110+D111+(D112/2) -> 6 | P112: 0.1045284633 | Q112: 16.30691945 | R112: 287.2005417 | S112: 303.5074612 | T112: 303.5074612 | V112: 0 | X112: 0 | Y112: =SUM(D98:D112)+$C$97 -> 6 | Z112: 48.51975024 | AA112: 0.7491840859 | AB112: 48.55649357 | AC112: 58.10681954 | AD112: 0.8490345782 | AE112: 107.82425 | AG112: -135.1 | AI112: 156.3807436 | AJ112: -107.82425 | AL112: 107.82425 | AM112: -41.94878558 | AN112: -93.15121442 | AO112: -81.05121407 | AP112: -36.49979253 | AQ112: 81.05121407 | AR112: 36.49979253
B113: 17 | D113: 0 | E113: from 0 to 20 | G113: 0 | H113: 127 | I113: 75.78636092 | J113: 75.78636092 | K113: 37.89318046 | L113: 0.6141912763 | M113: 78.00229208 | N113: 156.0045842 | O113: =+C97+D98+D99+D100+D101+D102+D103+D104+D105+D106+D107+D108+D109+D110+D111+D112+(D113/2) -> 6 | P113: 0.1045284633 | Q113: 16.30691945 | R113: 303.5074612 | S113: 319.8143806 | T113: 319.8143806 | V113: 0 | X113: 0 | Y113: =SUM(D98:D113)+$C$97 -> 6 | Z113: 48.51975024 | AA113: 0.7491840859 | AB113: 48.55649357 | AC113: 58.10681954 | AD113: 0.8490345782 | AE113: 107.82425 | AG113: -144.75 | AI113: 156.3807436 | AJ113: -107.82425 | AL113: 107.82425 | AM113: -44.94512741 | AN113: -99.80487259 | AO113: -75.6477998 | AP113: -34.06647303 | AQ113: 75.6477998 | AR113: 34.06647303
B114: 18 | D114: 0 | E114: from 0 to 20 | G114: 0 | H114: 127 | I114: 75.78636092 | J114: 75.78636092 | K114: 37.89318046 | L114: 0.6141912763 | M114: 78.00229208 | N114: 156.0045842 | O114: =+C97+D98+D99+D100+D101+D102+D103+D104+D105+D106+D107+D108+D109+D110+D111+D112+D113+(D114/2) -> 6 | P114: 0.1045284633 | Q114: 16.30691945 | R114: 319.8143806 | S114: 336.1213001 | T114: 336.1213001 | V114: 0 | X114: 0 | Y114: =SUM(D98:D114)+$C$97 -> 6 | Z114: 48.51975024 | AA114: 0.7491840859 | AB114: 48.55649357 | AC114: 58.10681954 | AD114: 0.8490345782 | AE114: 107.82425 | AG114: -154.4 | AI114: 156.3807436 | AJ114: -107.82425 | AL114: 107.82425 | AM114: -47.94146924 | AN114: -106.4585308 | AO114: -70.91981231 | AP114: -31.93731846 | AQ114: 70.91981231 | AR114: 31.93731846
B115: 19 | D115: 0 | E115: from 0 to 20 | G115: 0 | H115: 127 | I115: 75.78636092 | J115: 75.78636092 | K115: 37.89318046 | L115: 0.6141912763 | M115: 78.00229208 | N115: 156.0045842 | O115: =+C97+D98+D99+D100+D101+D102+D103+D104+D105+D106+D107+D108+D109+D110+D111+D112+D113+D114+(D115/2) -> 6 | P115: 0.1045284633 | Q115: 16.30691945 | R115: 336.1213001 | S115: 352.4282195 | T115: 352.4282195 | V115: 0 | X115: 0 | Y115: =SUM(D97:D115)+$C$97 -> 6 | Z115: 48.51975024 | AA115: 0.7491840859 | AB115: 48.55649357 | AC115: 58.10681954 | AD115: 0.8490345782 | AE115: 107.82425 | AG115: -164.05 | AI115: 156.3807436 | AJ115: -107.82425 | AL115: 107.82425 | AM115: -50.93781106 | AN115: -113.1121889 | AO115: -66.74805864 | AP115: -30.05865267 | AQ115: 66.74805864 | AR115: 30.05865267
B116: 20 | D116: 0 | E116: from 0 to 20 | G116: 0 | H116: 127 | I116: 75.78636092 | J116: 75.78636092 | K116: 37.89318046 | L116: 0.6141912763 | M116: 78.00229208 | N116: 156.0045842 | O116: =+C97+D98+D99+D100+D101+D102+D103+D104+D105+D106+D107+D108+D109+D110+D111+D112+D113+D114+D115+(D116/2) -> 6 | P116: 0.1045284633 | Q116: 16.30691945 | R116: 352.4282195 | S116: 368.735139 | T116: 368.735139 | V116: 0 | X116: 0 | Y116: =SUM(D98:D116)+$C$97 -> 6 | Z116: 48.51975024 | AA116: 0.7491840859 | AB116: 48.55649357 | AC116: 58.10681954 | AD116: 0.8490345782 | AE116: 107.82425 | AG116: -173.7 | AI116: 156.3807436 | AJ116: -107.82425 | AL116: 107.82425 | AM116: -53.93415289 | AN116: -119.7658471 | AO116: -63.03983316 | AP116: -28.38872752 | AQ116: 63.03983316 | AR116: 28.38872752
B117: 21 | D117: 0 | E117: from 0 to 20 | G117: 0 | H117: 127 | I117: 75.78636092 | J117: 75.78636092 | K117: 37.89318046 | L117: 0.6141912763 | M117: 78.00229208 | N117: 156.0045842 | O117: =+C97+D98+D99+D100+D101+D102+D103+D104+D105+D106+D107+D108+D109+D110+D111+D112+D113+D114+D115+D116+(D117/2) -> 6 | P117: 0.1045284633 | Q117: 16.30691945 | R117: 368.735139 | S117: 385.0420584 | T117: 385.0420584 | V117: 0 | X117: 0 | Y117: =SUM(D98:D117)+$C$97 -> 6 | Z117: 48.51975024 | AA117: 0.7491840859 | AB117: 48.55649357 | AC117: 58.10681954 | AD117: 0.8490345782 | AE117: 107.82425 | AG117: -183.35 | AI117: 156.3807436 | AJ117: -107.82425 | AL117: 107.82425 | AM117: -56.93049472 | AN117: -126.4195053 | AO117: -59.72194721 | AP117: -26.89458397 | AQ117: 59.72194721 | AR117: 26.89458397
B118: 22 | D118: 0 | E118: from 0 to 20 | G118: 0 | H118: 127 | I118: 75.78636092 | J118: 75.78636092 | K118: 37.89318046 | L118: 0.6141912763 | M118: 78.00229208 | N118: 156.0045842 | O118: =+C97+D98+D99+D100+D101+D102+D103+D104+D105+D106+D107+D108+D109+D110+D111+D112+D113+D114+D115+D116+D117+(D118/2) -> 6 | P118: 0.1045284633 | Q118: 16.30691945 | R118: 385.0420584 | S118: 401.3489779 | T118: 401.3489779 | V118: 0 | X118: 0 | Y118: =SUM(D98:D118)+$C$97 -> 6 | Z118: 48.51975024 | AA118: 0.7491840859 | AB118: 48.55649357 | AC118: 58.10681954 | AD118: 0.8490345782 | AE118: 107.82425 | AG118: -193 | AI118: 156.3807436 | AJ118: -107.82425 | AL118: 107.82425 | AM118: -59.92683654 | AN118: -133.0731635 | AO118: -56.73584985 | AP118: -25.54985477 | AQ118: 56.73584985 | AR118: 25.54985477
B119: 23 | D119: 0 | E119: from 0 to 20 | G119: 0 | H119: 127 | I119: 75.78636092 | J119: 75.78636092 | K119: 37.89318046 | L119: 0.6141912763 | M119: 78.00229208 | N119: 156.0045842 | O119: =+C97+D98+D99+D100+D101+D102+D103+D104+D105+D106+D107+D108+D109+D110+D111+D112+D113+D114+D115+D116+D117+D118+(D119/2) -> 6 | P119: 0.1045284633 | Q119: 16.30691945 | R119: 401.3489779 | S119: 417.6558973 | T119: 417.6558973 | V119: 0 | X119: 0 | Y119: =SUM(D98:D119)+$C$97 -> 6 | Z119: 48.51975024 | AA119: 0.7491840859 | AB119: 48.55649357 | AC119: 58.10681954 | AD119: 0.8490345782 | AE119: 107.82425 | AG119: -202.65 | AI119: 156.3807436 | AJ119: -107.82425 | AL119: 107.82425 | AM119: -62.92317837 | AN119: -139.7268216 | AO119: -54.03414271 | AP119: -24.33319502 | AQ119: 54.03414271 | AR119: 24.33319502
B120: 24 | D120: 0 | E120: from 0 to 20 | G120: 0 | H120: 127 | I120: 75.78636092 | J120: 75.78636092 | K120: 37.89318046 | L120: 0.6141912763 | M120: 78.00229208 | N120: 156.0045842 | O120: =+SUM(D98:D119)+(D120/2)+C97 -> 6 | P120: 0.1045284633 | Q120: 16.30691945 | R120: 417.6558973 | S120: 433.9628168 | T120: 433.9628168 | V120: 0 | X120: 0 | Y120: =SUM(D98:D120)+$C$97 -> 6 | Z120: 48.51975024 | AA120: 0.7491840859 | AB120: 48.55649357 | AC120: 58.10681954 | AD120: 0.8490345782 | AE120: 107.82425 | AG120: -212.3 | AI120: 156.3807436 | AJ120: -107.82425 | AL120: 107.82425 | AM120: -65.9195202 | AN120: -146.3804798 | AO120: -51.57804532 | AP120: -23.2271407 | AQ120: 51.57804532 | AR120: 23.2271407
CF122: mm

Sheet LA 4 SUB
BA2: Weight total: | BB2: =+C11 -> 135.5 | BC2: kg | BD2: Total weight includes: FR 4 ( 9 kg), Main LS Cables (30 kg)
BA4: 2 motors, kg | BB4: front motor | BN4: rear motor
BB5: =+(C8-C9)/C8*C11 -> 74.525 | BN5: =+(C9/C8)*C11 -> 60.975
BL6: =IF(BM22=12,11) -> FALSE | BN6: =IF(BM22=12,13) -> FALSE
BJ7: =IF(BL22=11,9) -> FALSE | BN7: =IF(BL22=11,13) -> FALSE
B8: L(2motors)= | C8: 480 | BH8: =IF(BK22=10,7) -> FALSE | BN8: =IF(BK22=10,13) -> FALSE
B9: a(2motors)=a-15 | C9: =+C14-15 -> 216 | BF9: =IF(BJ22=9,5) -> FALSE | BN9: =IF(BJ22=9,13) -> FALSE
G10: =AND(D22>=5,AL22>=5) -> FALSE | BD10: =IF(BI22=8,3) -> FALSE | BN10: =IF(BI22=8,13) -> FALSE
B11: G | C11: =+B31*32+9.5+30 -> 135.5 | D11: kg | G11: =IF(D22>=5,"O K ","OVERLOAD") -> OVERLOAD | H11: =IF(AL22>=5,"O K ","OVERLOAD") -> O K | BB11: =IF(BH22=7,1) -> FALSE | BN11: =IF(BH22=7,13) -> FALSE
B12: L | C12: =+AE34 -> 152.9980323 | D12: mm | BB12: =IF(BH22=61,1) -> FALSE | BN12: =IF(BH22=61,10) -> FALSE
B13: a при 0 гр. | C13: 351 | D13: mm | G13: 1700 | H13: 1700 | BB13: =IF(BG22=6,1) -> 1 | BL13: =IF(BG22=6,8) -> 8
B14: a | C14: =+V34 -> 231 | D14: mm | G14: Fa=((L-a)/L)*G | H14: Fb=(a/L)*G | BB14: =IF(BF22=5,1) -> FALSE | BJ14: =IF(BF22=5,9) -> FALSE
BB15: =IF(BE22=4,1) -> FALSE | BH15: =IF(BE22=4,7) -> FALSE
BB16: =IF(BD22=3,1) -> FALSE | BF16: =IF(BD22=3,5) -> FALSE
BB17: =IF(BC22=2,1) -> FALSE | BD17: =IF(BC22=2,3) -> FALSE
D19: =+((C12-C14)/C12)*C11 -> -69.0810625 | AL19: =+(C14/C12)*C11 -> 204.5810625
C20: kg | BA20: 2 points-one motor | BB20: =SUM(BB6:BB18) -> 1 | BC20: 0 | BD20: 0 | BE20: 0 | BF20: 0 | BG20: 0 | BH20: =SUM(BH6:BH18) -> 0 | BI20: 0 | BJ20: 0 | BK20: 0 | BL20: =SUM(BL6:BL18) -> 8 | BM20: 0 | BN20: 0
D22: =+G13/D19 -> -24.60877031 | AL22: =+H13/AL19 -> 8.309664537 | BB22: =+BY33 -> FALSE | BC22: =+BY34 -> FALSE | BD22: =+BY35 -> FALSE | BE22: =+BY36 -> FALSE | BF22: =+BY37 -> FALSE | BG22: =+BY38 -> 6 | BH22: =+BY39 -> FALSE | BI22: =+BY40 -> FALSE | BJ22: =+BY41 -> FALSE | BK22: =+BY42 -> FALSE | BL22: =+BY43 -> FALSE | BM22: =+BY44 -> FALSE | BN22: =+BY45 -> FALSE
D23: front | AL23: rear | BA23: 1 point-one motor | BB23: =+BB22 -> FALSE | BC23: =+BC22 -> FALSE | BD23: FALSE | BE23: FALSE | BF23: FALSE | BG23: 6 | BH23: FALSE | BI23: FALSE | BJ23: FALSE | BK23: FALSE | BL23: FALSE | BM23: FALSE | BN23: FALSE
B24: k - safety factor of FR 4 | D24: =ABS(D22) -> 24.60877031 | AL24: =ABS(AL22) -> 8.309664537 | BB24: 1 | BC24: 2 | BD24: 3 | BE24: 4 | BF24: 5 | BG24: 6 | BH24: 7 | BI24: 8 | BJ24: 9 | BK24: 10 | BL24: 11 | BM24: 12 | BN24: 13
B26: enter the angle of frame FR 4
D27: =IF(AZ28>0," ","change the angle of frame") ->  | AZ27: center om mass | BQ27: center om mass
B28: 0 | D28: =IF(BQ28<0," ","change the angle of frame") ->  | AZ28: =-+BV33 -> 216 | BQ28: =+-BV45 -> -264
B30: enter the number of cabinets from 1 up to 12 | AL30: k - safety factor
B31: 3 | D31: LA 4 SUB | AL31: front | AM31: rear
F32: d | G32: k | H32: b | I32: b/2 | J32: sin b/2 | K32: c=sin(b/2)*d | L32: 2c | M32: e=a/2 | N32: sin(e) | O32: f=sin(e)*2c | P32: g center of mass -x | Q32: h=g+f | R32: center of mass X
V33: z- център на тежест на боксовете след него спрямо първата колона | W33: a - общ ъгъл | X33: t= 58.15-a | Y33: sin t | Z33: m= sin t *n(const) | AA33: a | AB33: sin r | AC33: p= sin r *q(const) | AD33: g SC8 - тегло на боксожете под тази | AE33: L=m-p | AF33: J=x-p | AG33: Asc8=z-J | AH33: Fa=((L-A)/L)*G | AI33: Fb=(A/L)*G | AJ33: front | AK33: rear | BS33: 1 | BT33: 15 | BV33: =+BT33-C$14 -> -216 | BW33: =ABS(BV33) -> 216 | BX33: =MIN(BW32:BW45) -> 16 | BY33: =IF(BX33=BW33,BS33) -> FALSE
B34: 1 | C34: =+(B28*-1)+D34 -> 0 | D34: 0 | F34: 323.5 | G34: 88.87290626 | H34: =+G34-C34 -> 88.87290626 | I34: =+H34/2 -> 44.43645313 | J34: =SIN(I34*3.14159265358979/180) -> 0.7001177658 | K34: =+J34*F34 -> 226.4880972 | L34: =+K34*2 -> 452.9761945 | M34: =+C34/2 -> 0 | N34: =SIN(M34*3.14159265358979/180) -> 0 | O34: =+N34*L34 -> 0 | P34: 231 | Q34: =+P34+O34 -> 231 | R34: =+Q34 -> 231 | T34: =IF(B34<($B$31+1),R34,0) -> 231 | V34: =SUM(T34:T45)/($B$31) -> 231 | W34: =+D34+C34 -> 0 | X34: =157.42570277-$W$34 -> 157.4257028 | Y34: =SIN(X34*3.14159265358979/180) -> 0.3838811338 | Z34: =+Y34*203.18 -> 77.99696876 | AA34: =45.56354687+$W$34 -> 45.56354687 | AB34: =SIN(AA34*3.14159265358979/180) -> 0.7140273903 | AC34: =+AB34*323.51 -> 230.995001 | AD34: =32*B31 -> 96 | AE34: =+AC34-Z34 -> 152.9980323 | AF34: =+T34-AC34 -> 0.004998979566 | AG34: =+V34-AF34 -> 230.995001 | AH34: =+((AE34-AG34)/AE34)*AD34 -> -48.93990394 | AI34: =+(AG34/AE34)*AD34 -> 144.9399039 | AJ34: =2*$G$13/AH34 -> -69.47296023 | AK34: =2*$H$13/AI34 -> 23.45799816 | AL34: =ABS(AJ34) -> 69.47296023 | AM34: =ABS(AK34) -> 23.45799816 | BS34: 2 | BT34: 55 | BV34: -176 | BW34: 176 | BX34: =MIN(BW32:BW45) -> 16 | BY34: FALSE
B35: 2 | D35: 0 | F35: 323.5 | G35: 88.87290626 | H35: =+G35-D35 -> 88.87290626 | I35: 44.43645313 | J35: 0.7001177658 | K35: 226.4880972 | L35: 452.9761945 | M35: =+C34+(D35/2) -> 0 | N35: 0 | O35: 0 | P35: =+R34 -> 231 | Q35: =+P35+O35 -> 231 | R35: 231 | T35: 231 | V35: =SUM(T35:T45)/($B$31-B34) -> 231 | X35: =157.42570277-$W$34 -> 157.4257028 | Y35: =SIN(X35*3.14159265358979/180) -> 0.3838811338 | Z35: =+Y35*203.18 -> 77.99696876 | AA35: =45.56354687+$W$34 -> 45.56354687 | AB35: =SIN(AA35*3.14159265358979/180) -> 0.7140273903 | AC35: =+AB35*323.51 -> 230.995001 | AD35: =32*($B$31-B34) -> 64 | AE35: =+AC35-Z35 -> 152.9980323 | AF35: =+T35-AC35 -> 0.004998979566 | AG35: 230.995001 | AH35: =+((AE35-AG35)/AE35)*AD35 -> -32.62660262 | AI35: =+(AG35/AE35)*AD35 -> 96.62660262 | AJ35: -104.2094404 | AK35: 35.18699724 | AL35: =ABS(AJ35) -> 104.2094404 | AM35: 35.18699724 | BS35: 3 | BT35: =+BT34+40 -> 95 | BV35: -136 | BW35: 136 | BX35: =MIN(BW32:BW46) -> 16 | BY35: FALSE
B36: 3 | D36: 0 | F36: 323.5 | G36: 88.87290626 | H36: 88.87290626 | I36: 44.43645313 | J36: 0.7001177658 | K36: 226.4880972 | L36: 452.9761945 | M36: =+C34+D35+(D36/2) -> 0 | N36: 0 | O36: 0 | P36: 231 | Q36: =+Q35+O36 -> 231 | R36: 231 | T36: 231 | V36: =SUM(T36:T45)/($B$31-B35) -> 231 | X36: 157.4257028 | Y36: =SIN(X36*3.14159265358979/180) -> 0.3838811338 | Z36: 77.99696876 | AA36: 45.56354687 | AB36: 0.7140273903 | AC36: 230.995001 | AD36: =32*($B$31-B35) -> 32 | AE36: 152.9980323 | AF36: =+T36-AC36 -> 0.004998979566 | AG36: 230.995001 | AH36: -16.31330131 | AI36: 48.31330131 | AJ36: -208.4188807 | AK36: 70.37399448 | AL36: 208.4188807 | AM36: 70.37399448 | BS36: 4 | BT36: 135 | BV36: -96 | BW36: 96 | BX36: =MIN(BW33:BW46) -> 16 | BY36: FALSE
B37: 4 | D37: 0 | F37: 323.5 | G37: 88.87290626 | H37: 88.87290626 | I37: 44.43645313 | J37: 0.7001177658 | K37: 226.4880972 | L37: 452.9761945 | M37: =+C34+D35+D36+(D37/2) -> 0 | N37: 0 | O37: 0 | P37: 231 | Q37: 231 | R37: 231 | T37: 0 | V37: =SUM(T37:T45)/($B$31-B36) ->  | X37: 157.4257028 | Y37: 0.3838811338 | Z37: 77.99696876 | AA37: 45.56354687 | AB37: 0.7140273903 | AC37: 230.995001 | AD37: 0 | AE37: 152.9980323 | AF37: =+T37-AC37 -> -230.995001 | BS37: 5 | BT37: 175 | BV37: -56 | BW37: 56 | BX37: =MIN(BW33:BW46) -> 16 | BY37: FALSE
B38: 5 | D38: 0 | F38: 323.5 | G38: 88.87290626 | H38: 88.87290626 | I38: 44.43645313 | J38: 0.7001177658 | K38: 226.4880972 | L38: 452.9761945 | M38: =+C34+D35+D36+D37+(D38/2) -> 0 | N38: 0 | O38: 0 | P38: 231 | Q38: 231 | R38: 231 | T38: 0 | V38: =SUM(T38:T45)/($B$31-B37) -> 0 | X38: 157.4257028 | Y38: 0.3838811338 | Z38: 77.99696876 | AA38: 45.56354687 | AB38: 0.7140273903 | AC38: 230.995001 | AD38: -32 | AE38: 152.9980323 | AF38: =+T38-AC38 -> -230.995001 | AG38: 230.995001 | AH38: 16.31330131 | AI38: -48.31330131 | AJ38: 208.4188807 | AK38: -70.37399448 | AL38: 208.4188807 | AM38: 70.37399448 | BS38: 6 | BT38: 215 | BV38: -16 | BW38: 16 | BX38: =MIN(BW33:BW46) -> 16 | BY38: 6
B39: 6 | D39: 0 | F39: 323.5 | G39: 88.87290626 | H39: 88.87290626 | I39: 44.43645313 | J39: 0.7001177658 | K39: 226.4880972 | L39: 452.9761945 | M39: =+C34+D35+D36+D37+D38+(D39/2) -> 0 | N39: 0 | O39: 0 | P39: 231 | Q39: 231 | R39: 231 | T39: 0 | V39: =SUM(T39:T45)/($B$31-B38) -> 0 | X39: 157.4257028 | Y39: 0.3838811338 | Z39: 77.99696876 | AA39: 45.56354687 | AB39: 0.7140273903 | AC39: 230.995001 | AD39: -64 | AE39: 152.9980323 | AF39: -230.995001 | AG39: 230.995001 | AH39: 32.62660262 | AI39: -96.62660262 | AJ39: 104.2094404 | AK39: -35.18699724 | AL39: 104.2094404 | AM39: 35.18699724 | BS39: 7 | BT39: 255 | BV39: 24 | BW39: 24 | BX39: =MIN(BW33:BW46) -> 16 | BY39: FALSE
B40: 7 | D40: 0 | F40: 323.5 | G40: 88.87290626 | H40: 88.87290626 | I40: 44.43645313 | J40: 0.7001177658 | K40: 226.4880972 | L40: 452.9761945 | M40: =+C34+D35+D36+D37+D38+D39+(D40/2) -> 0 | N40: 0 | O40: 0 | P40: 231 | Q40: 231 | R40: 231 | T40: 0 | V40: =SUM(T40:T45)/($B$31-B39) -> 0 | X40: 157.4257028 | Y40: 0.3838811338 | Z40: 77.99696876 | AA40: 45.56354687 | AB40: 0.7140273903 | AC40: 230.995001 | AD40: -96 | AE40: 152.9980323 | AF40: -230.995001 | AG40: 230.995001 | AH40: 48.93990394 | AI40: -144.9399039 | AJ40: 69.47296023 | AK40: -23.45799816 | AL40: 69.47296023 | AM40: 23.45799816 | BS40: 8 | BT40: 295 | BV40: 64 | BW40: 64 | BX40: =MIN(BW33:BW46) -> 16 | BY40: FALSE
B41: 8 | D41: 0 | F41: 323.5 | G41: 88.87290626 | H41: 88.87290626 | I41: 44.43645313 | J41: 0.7001177658 | K41: 226.4880972 | L41: 452.9761945 | M41: =+C34+D35+D36+D37+D38+D39+D40+(D41/2) -> 0 | N41: 0 | O41: 0 | P41: 231 | Q41: 231 | R41: 231 | T41: 0 | V41: =SUM(T41:T45)/($B$31-B40) -> 0 | X41: 157.4257028 | Y41: 0.3838811338 | Z41: 77.99696876 | AA41: 45.56354687 | AB41: 0.7140273903 | AC41: 230.995001 | AD41: -128 | AE41: 152.9980323 | AF41: -230.995001 | AG41: 230.995001 | AH41: 65.25320525 | AI41: -193.2532052 | AJ41: 52.10472018 | AK41: -17.59349862 | AL41: 52.10472018 | AM41: 17.59349862 | BS41: 9 | BT41: 335 | BV41: 104 | BW41: 104 | BX41: =MIN(BW32:BW45) -> 16 | BY41: FALSE
B42: 9 | D42: 0 | F42: 323.5 | G42: 88.87290626 | H42: 88.87290626 | I42: 44.43645313 | J42: 0.7001177658 | K42: 226.4880972 | L42: 452.9761945 | M42: =+C34+D35+D36+D37+D38+D39+D40+D41+(D42/2) -> 0 | N42: 0 | O42: 0 | P42: 231 | Q42: 231 | R42: 231 | T42: 0 | V42: =SUM(T42:T45)/($B$31-B41) -> 0 | X42: 157.4257028 | Y42: 0.3838811338 | Z42: 77.99696876 | AA42: 45.56354687 | AB42: 0.7140273903 | AC42: 230.995001 | AD42: -160 | AE42: 152.9980323 | AF42: -230.995001 | AG42: 230.995001 | AH42: 81.56650656 | AI42: -241.5665066 | AJ42: 41.68377614 | AK42: -14.0747989 | AL42: 41.68377614 | AM42: 14.0747989 | BS42: 10 | BT42: 375 | BV42: 144 | BW42: 144 | BX42: =MIN(BW32:BW45) -> 16 | BY42: FALSE
B43: 10 | D43: 0 | F43: 323.5 | G43: 88.87290626 | H43: 88.87290626 | I43: 44.43645313 | J43: 0.7001177658 | K43: 226.4880972 | L43: 452.9761945 | M43: =+C34+D35+D36+D37+D38+D39+D40+D41+D42+(D43/2) -> 0 | N43: 0 | O43: 0 | P43: 231 | Q43: 231 | R43: 231 | T43: 0 | V43: =SUM(T43:T45)/($B$31-B42) -> 0 | X43: 157.4257028 | Y43: 0.3838811338 | Z43: 77.99696876 | AA43: 45.56354687 | AB43: 0.7140273903 | AC43: 230.995001 | AD43: -192 | AE43: 152.9980323 | AF43: -230.995001 | AG43: 230.995001 | AH43: 97.87980787 | AI43: -289.8798079 | AJ43: 34.73648012 | AK43: -11.72899908 | AL43: 34.73648012 | AM43: 11.72899908 | BS43: 11 | BT43: 415 | BV43: 184 | BW43: 184 | BX43: =MIN(BW33:BW46) -> 16 | BY43: FALSE
B44: 11 | D44: 0 | F44: 323.5 | G44: 88.87290626 | H44: 88.87290626 | I44: 44.43645313 | J44: 0.7001177658 | K44: 226.4880972 | L44: 452.9761945 | M44: =+C34+D35+D36+D37+D38+D39+D40+D41+D42+D43+(D44/2) -> 0 | N44: 0 | O44: 0 | P44: 231 | Q44: 231 | R44: 231 | T44: 0 | V44: =SUM(T44:T45)/($B$31-B43) -> 0 | X44: 157.4257028 | Y44: 0.3838811338 | Z44: 77.99696876 | AA44: 45.56354687 | AB44: 0.7140273903 | AC44: 230.995001 | AD44: -224 | AE44: 152.9980323 | AF44: -230.995001 | AG44: 230.995001 | AH44: 114.1931092 | AI44: -338.1931092 | AJ44: 29.77412581 | AK44: -10.05342778 | AL44: 29.77412581 | AM44: 10.05342778 | BS44: 12 | BT44: 455 | BV44: 224 | BW44: 224 | BX44: =MIN(BW33:BW46) -> 16 | BY44: FALSE
B45: 12 | D45: 0 | F45: 323.5 | G45: 88.87290626 | H45: 88.87290626 | I45: 44.43645313 | J45: 0.7001177658 | K45: 226.4880972 | L45: 452.9761945 | M45: =+C34+D35+D36+D37+D38+D39+D40+D41+D42+D43+D44+(D45/2) -> 0 | N45: 0 | O45: 0 | P45: 231 | Q45: 231 | R45: 231 | T45: 0 | V45: =SUM(T45)/($B$31-B44) -> 0 | X45: 157.4257028 | Y45: 0.3838811338 | Z45: 77.99696876 | AA45: 45.56354687 | AB45: 0.7140273903 | AC45: 230.995001 | AD45: -256 | AE45: 152.9980323 | AF45: -230.995001 | AG45: 230.995001 | AH45: 130.5064105 | AI45: -386.5064105 | AJ45: 26.05236009 | AK45: -8.79674931 | AL45: 26.05236009 | AM45: 8.79674931 | BS45: 13 | BT45: 495 | BV45: 264 | BW45: 264 | BX45: =MIN(BW33:BW46) -> 16 | BY45: FALSE
